Workbook

Sheet ORÇAMENTO
A1: <---- NUMERAR SERVIÇOS PARA CPU | E1: Ministério do Desenvolvimento Regional
E2: Companhia de Desenvolvimento dos Vales do São Francisco e do Parnaíba
E3: 1ª Superintendência Regional
B5: OBRA: | C5: PAVIMENTAÇÃO ASFÁLTICA EM CBUQ - VIAS URBANAS DIVERSAS - SEDE E COMUNIDADE RIO DAS PEDRAS (GLAUCILÂNDIA / MG) | J5: BDI Serviços (%): | L5: ='BDI SERV'!E26 -> 23.32
B6: DATA: | C6: ABRIL / 2025 | I6: BDI Diferenciado Serviços (%): | L6: ='BDI FORN'!D31 -> 15
B7: PRAZO DE EXECUÇÃO: 180 DIAS | I7: BDI Fornecimentos (%): | L7: ='BDI FORN'!D31 -> 15
B8: PLANILHA DE ORÇAMENTAÇÃO
B9: ITEM | C9: CÓDIGO | D9: FONTE | E9: DISCRIMINAÇÃO | F9: TIPO | G9: UNID. | H9: QUANT. | I9: VR.UNIT.S/BDI | J9: PR. UNIT.C/BDI | K9: C. TOT.S/BDI | L9: P. TOT.C/BDI
A10: A | B10: 1 | E10: SERVIÇOS PRELIMINARES | K10: =SUM(K11:K15) -> 165459.99 | L10: =SUM(L11:L15) -> 203988.03
A11: 1 | B11: 1.1 | C11: CPU.1 | D11: CODEVASF | E11: MOBILIZAÇÃO E DESMOBILIZAÇÃO | F11: SERV | G11: GL | H11: 2 | I11: =VLOOKUP(A11,'CPU-SERV'!A:K,11,0) -> 4944.29 | J11: =TRUNC(_xlfn.IFS(F11="SERV",I11*(1+$L$5/100),F11="SERV DIF",I11*(1+$L$6/100),F11="FORN",I11*(1+$L$7/100)),2) -> 6097.29 | K11: =TRUNC(H11*I11,2) -> 9888.58 | L11: =TRUNC(H11*J11,2) -> 12194.58
A12: 2 | B12: 1.2 | C12: CPU.2 | D12: CODEVASF | E12: ADMINISTRAÇÃO LOCAL | F12: SERV | G12: GL | H12: 1 | I12: =VLOOKUP(A12,'CPU-SERV'!A:K,11,0) -> 132621.79 | J12: =TRUNC(_xlfn.IFS(F12="SERV",I12*(1+$L$5/100),F12="SERV DIF",I12*(1+$L$6/100),F12="FORN",I12*(1+$L$7/100)),2) -> 163549.19 | K12: =TRUNC(H12*I12,2) -> 132621.79 | L12: =TRUNC(H12*J12,2) -> 163549.19
A13: 3 | B13: 1.3 | C13: CPU.3 | D13: CODEVASF | E13: CANTEIRO DE OBRAS | F13: SERV | G13: GL | H13: 2 | I13: =VLOOKUP(A13,'CPU-SERV'!A:K,11,0) -> 7137.55 | J13: =TRUNC(_xlfn.IFS(F13="SERV",I13*(1+$L$5/100),F13="SERV DIF",I13*(1+$L$6/100),F13="FORN",I13*(1+$L$7/100)),2) -> 8802.02 | K13: 14275.1 | L13: 17604.04
A14: 4 | B14: 1.4 | C14: 103689 | D14: SINAPI | E14: PLACA DE OBRA EM CHAPA DE AÇO GALVANIZADO | F14: SERV | G14: M2 | H14: 6 | I14: =VLOOKUP(A14,'CPU-SERV'!A:K,11,0) -> 351.42 | J14: =TRUNC(_xlfn.IFS(F14="SERV",I14*(1+$L$5/100),F14="SERV DIF",I14*(1+$L$6/100),F14="FORN",I14*(1+$L$7/100)),2) -> 433.37 | K14: 2108.52 | L14: 2600.22
A15: 6 | B15: 1.5 | C15: 78472 | D15: SINAPI | E15: SERVIÇOS TOPOGRÁFICOS PARA PAVIMENTAÇÃO, INCLUSIVE LEVANTAMENTO PLANIALTIMÉTRICO CADASTRAL, GERAÇÃO DE NOTAS DE SERVIÇO, SEÇÕES TRANSVERSAIS E GREIDE, ESTAQUEAMENTO E ACOMPANHAMENTO EXECUTIVO | F15: SERV | G15: M2 | H15: 13400 | I15: =VLOOKUP(A15,'CPU-SERV'!A:K,11,0) -> 0.49 | J15: =TRUNC(_xlfn.IFS(F15="SERV",I15*(1+$L$5/100),F15="SERV DIF",I15*(1+$L$6/100),F15="FORN",I15*(1+$L$7/100)),2) -> 0.6 | K15: 6566 | L15: 8040
A16: B | B16: 2 | E16: TERRAPLANAGEM E PAVIMENTAÇÃO | K16: =SUM(K17:K22) -> 555748.58 | L16: =SUM(L17:L22) -> 685124.18
A17: 7 | B17: 2.1 | C17: 5502140 | D17: SICRO | E17: ESCAVAÇÃO, CARGA E TRANSPORTE DE MATERIAL DE 1ª CATEGORIA - DMT 1.000 A 1.200M, CAMINHO DE SERVIÇO EM REVESTIMENTO PRIMÁRIO | F17: SERV | G17: M3 | H17: 1999.9985 | I17: =VLOOKUP(A17,'CPU-SERV'!A:K,11,0) -> 6.74 | J17: =TRUNC(_xlfn.IFS(F17="SERV",I17*(1+$L$5/100),F17="SERV DIF",I17*(1+$L$6/100),F17="FORN",I17*(1+$L$7/100)),2) -> 8.31 | K17: =TRUNC(H17*I17,2) -> 13479.98 | L17: =TRUNC(H17*J17,2) -> 16619.98
A18: 9 | B18: 2.2 | C18: 4011209 | D18: SICRO | E18: REGULARIZAÇÃO E COMPACTAÇÃO DO SUBLEITO | F18: SERV | G18: M2 | H18: 13400 | I18: =VLOOKUP(A18,'CPU-SERV'!A:K,11,0) -> 1.54 | J18: =TRUNC(_xlfn.IFS(F18="SERV",I18*(1+$L$5/100),F18="SERV DIF",I18*(1+$L$6/100),F18="FORN",I18*(1+$L$7/100)),2) -> 1.89 | K18: 20636 | L18: 25326
A19: 10 | B19: 2.3 | C19: 4011276 | D19: SICRO | E19: EXECUÇÃO E COMPACTAÇÃO DE BASE E OU SUB BASE PARA PAVIMENTAÇÃO DE BICA CORRIDA - EXCLUSIVE TRANSPORTE | F19: SERV | G19: M3 | H19: 2000 | I19: =VLOOKUP(A19,'CPU-SERV'!A:K,11,0) -> 149.72 | J19: =TRUNC(_xlfn.IFS(F19="SERV",I19*(1+$L$5/100),F19="SERV DIF",I19*(1+$L$6/100),F19="FORN",I19*(1+$L$7/100)),2) -> 184.63 | K19: 299440 | L19: 369260
A20: 12 | B20: 2.4 | C20: 4011352 | D20: SICRO | E20: IMPRIMAÇÃO COM EMULSÃO ASFÁLTICA (EAI) | F20: SERV | G20: M2 | H20: 13400 | I20: =VLOOKUP(A20,'CPU-SERV'!A:K,11,0) -> 0.4 | J20: =TRUNC(_xlfn.IFS(F20="SERV",I20*(1+$L$5/100),F20="SERV DIF",I20*(1+$L$6/100),F20="FORN",I20*(1+$L$7/100)),2) -> 0.49 | K20: 5360 | L20: 6566
A21: 13 | B21: 2.5 | C21: 4011353 | D21: SICRO | E21: PINTURA DE LIGAÇÃO COM EMULSÃO ASFÁLTICA RR-1C | F21: SERV | G21: M2 | H21: 11700 | I21: =VLOOKUP(A21,'CPU-SERV'!A:K,11,0) -> 0.27 | J21: =TRUNC(_xlfn.IFS(F21="SERV",I21*(1+$L$5/100),F21="SERV DIF",I21*(1+$L$6/100),F21="FORN",I21*(1+$L$7/100)),2) -> 0.33 | K21: 3159 | L21: 3861
A22: 14 | B22: 2.6 | C22: 4011463 | D22: SICRO | E22: EXECUÇÃO DE PAVIMENTO COM APLICAÇÃO DE CONCRETO ASFÁLTICO USINADO A QUENTE (CBUQ), CAMADA DE ROLAMENTO - EXCLUSIVE TRANSPORTE | F22: SERV | G22: T | H22: 1120 | I22: =VLOOKUP(A22,'CPU-SERV'!A:K,11,0) -> 190.78 | J22: =TRUNC(_xlfn.IFS(F22="SERV",I22*(1+$L$5/100),F22="SERV DIF",I22*(1+$L$6/100),F22="FORN",I22*(1+$L$7/100)),2) -> 235.26 | K22: 213673.6 | L22: 263491.2
A23: C | B23: 3 | E23: TRANSPORTE DE MATERIAIS | K23: =SUM(K24:K28) -> 174298 | L23: =SUM(L24:L28) -> 213308
A24: 15 | B24: 3.1 | C24: 5915321 | D24: SICRO | E24: TRANSPORTE COM CAMINHÃO BASCULANTE, EM RODOVIA PAVIMENTADA | F24: SERV | G24: TXKM | H24: 190000.0023 | I24: =VLOOKUP(A24,'CPU-SERV'!A:K,11,0) -> 0.54 | J24: =TRUNC(_xlfn.IFS(F24="SERV",I24*(1+$L$5/100),F24="SERV DIF",I24*(1+$L$6/100),F24="FORN",I24*(1+$L$7/100)),2) -> 0.66 | K24: =TRUNC(H24*I24,2) -> 102600 | L24: =TRUNC(H24*J24,2) -> 125400
A25: 16 | B25: 3.2 | C25: 5915320 | D25: SICRO | E25: TRANSPORTE COM CAMINHÃO BASCULANTE, RODOVIA EM REVESTIMENTO PRIMÁRIO | F25: SERV | G25: TXKM | H25: 18000.00089 | I25: =VLOOKUP(A25,'CPU-SERV'!A:K,11,0) -> 0.72 | J25: =TRUNC(_xlfn.IFS(F25="SERV",I25*(1+$L$5/100),F25="SERV DIF",I25*(1+$L$6/100),F25="FORN",I25*(1+$L$7/100)),2) -> 0.88 | K25: 12960 | L25: 15840
A26: 17 | B26: 3.3 | C26: 5914434 | D26: SICRO | E26: TRANSPORTE COM CAMINHÃO CARROCERIA 9T, EM VIA URBANA PREDOMINANTEMENTE PAVIMENTADA | F26: SERV | G26: TXKM | H26: 20000.0007 | I26: =VLOOKUP(A26,'CPU-SERV'!A:K,11,0) -> 0.74 | J26: =TRUNC(_xlfn.IFS(F26="SERV",I26*(1+$L$5/100),F26="SERV DIF",I26*(1+$L$6/100),F26="FORN",I26*(1+$L$7/100)),2) -> 0.91 | K26: 14800 | L26: 18200
A27: 18 | B27: 3.4 | C27: 5914612 | D27: SICRO | E27: TRANSPORTE DE MASSA ASFÁLTICA COM CAMINHÃO BASCULANTE, EM VIA URBANA PREDOMINANTEMENTE PAVIMENTADA | F27: SERV | G27: TXKM | H27: 45000 | I27: =VLOOKUP(A27,'CPU-SERV'!A:K,11,0) -> 0.93 | J27: =TRUNC(_xlfn.IFS(F27="SERV",I27*(1+$L$5/100),F27="SERV DIF",I27*(1+$L$6/100),F27="FORN",I27*(1+$L$7/100)),2) -> 1.14 | K27: 41850 | L27: 51300
A28: 19 | B28: 3.5 | C28: 5914622 | D28: SICRO | E28: TRANSPORTE COM CAMINHÃO TANQUE DE TRANSPORTE DE MATERIAL ASFÁLTICO DE 30000 L, EM VIA URBANA PREDOMINANTEMENTE PAVIMENTADA | F28: SERV | G28: TXKM | H28: 1200 | I28: =VLOOKUP(A28,'CPU-SERV'!A:K,11,0) -> 1.74 | J28: =TRUNC(_xlfn.IFS(F28="SERV",I28*(1+$L$5/100),F28="SERV DIF",I28*(1+$L$6/100),F28="FORN",I28*(1+$L$7/100)),2) -> 2.14 | K28: 2088 | L28: 2568
A29: E | B29: 4 | E29: DRENAGEM E OBRAS COMPLEMENTARES | K29: =SUM(K30:K34) -> 343114.34 | L29: =SUM(L30:L34) -> 423105.85
A30: 20 | B30: 4.1 | C30: 94273 | D30: SINAPI | E30: ASSENTAMENTO DE GUIA (MEIO-FIO) PRÉ-MOLDADO DE CONCRETO - 100X15X13X30 CM (COMPRIMENTO X BASE INFERIOR X BASE SUPERIOR X ALTURA) - USO VIÁRIO | F30: SERV | G30: M | H30: 3700 | I30: =VLOOKUP(A30,'CPU-SERV'!A:K,11,0) -> 53.22 | J30: =TRUNC(_xlfn.IFS(F30="SERV",I30*(1+$L$5/100),F30="SERV DIF",I30*(1+$L$6/100),F30="FORN",I30*(1+$L$7/100)),2) -> 65.63 | K30: =TRUNC(H30*I30,2) -> 196914 | L30: =TRUNC(H30*J30,2) -> 242831
A31: 23 | B31: 4.2 | C31: 94287a | D31: SINAPI | E31: EXECUÇÃO DE SARJETA EM CONCRETO USINADO, MOLDADO IN LOCO - 30CM DE BASE X 5CM DE ALTURA | F31: SERV | G31: M | H31: 3700 | I31: =VLOOKUP(A31,'CPU-SERV'!A:K,11,0) -> 25.19 | J31: =TRUNC(_xlfn.IFS(F31="SERV",I31*(1+$L$5/100),F31="SERV DIF",I31*(1+$L$6/100),F31="FORN",I31*(1+$L$7/100)),2) -> 31.06 | K31: 93203 | L31: 114922
A32: 46 | B32: 4.3 | C32: 5213440 | D32: SICRO | E32: PLACA DE REGULAMENTAÇÃO EM AÇO, D=60CM - PELÍCULA RETRORREFLETIVA - FORNECIMENTO E INSTALAÇÃO, INCLUSIVE SUPORTE | F32: SERV | G32: UN. | H32: 27 | I32: =VLOOKUP(A32,'CPU-SERV'!A:K,11,0) -> 259.46 | J32: =TRUNC(_xlfn.IFS(F32="SERV",I32*(1+$L$5/100),F32="SERV DIF",I32*(1+$L$6/100),F32="FORN",I32*(1+$L$7/100)),2) -> 319.96 | K32: 7005.42 | L32: 8638.92
A33: 49 | B33: 4.4 | C33: 5213401 | D33: SICRO | E33: PINTURA DE EIXO VIÁRIO SOBRE ASFALTO COM TINTA RETRORREFLETIVA A BASE DE RESINA ACRÍLICA COM MICROESFERAS DE VIDRO, APLICAÇÃO MECÂNICA COM DEMARCADORA AUTOPROPELIDA | F33: SERV | G33: M2 | H33: 570.001 | I33: =VLOOKUP(A33,'CPU-SERV'!A:K,11,0) -> 29.17 | J33: =TRUNC(_xlfn.IFS(F33="SERV",I33*(1+$L$5/100),F33="SERV DIF",I33*(1+$L$6/100),F33="FORN",I33*(1+$L$7/100)),2) -> 35.97 | K33: 16626.92 | L33: 20502.93
A34: 51 | B34: 4.5 | C34: 5213405 | D34: SICRO | E34: PINTURA DE FAIXA DE PEDESTRE OU ZEBRADA TINTA RETRORREFLETIVA A BASE DE RESINA ACRÍLICA COM MICROESFERAS DE VIDRO, APLICAÇÃO MANUAL | F34: SERV | G34: M2 | H34: 700 | I34: =VLOOKUP(A34,'CPU-SERV'!A:K,11,0) -> 41.95 | J34: =TRUNC(_xlfn.IFS(F34="SERV",I34*(1+$L$5/100),F34="SERV DIF",I34*(1+$L$6/100),F34="FORN",I34*(1+$L$7/100)),2) -> 51.73 | K34: 29365 | L34: 36211
A35: F | B35: 5 | E35: FORNECIMENTOS - MATERIAL ASFÁLTICO (BDI DIFERENCIADO) | K35: =SUM(K36:K41) -> 412372.06 | L35: =SUM(L36:L41) -> 474227.65
A36: F1 | B36: 5.1 | C36: CPU.7 | D36: CODEVASF | E36: AQUISIÇÃO DE EMULSÃO ASFÁLTICA PARA IMPRIMAÇÃO (EAI) - EXCLUSIVE TRANSPORTE | F36: FORN | G36: T | H36: 17.5 | I36: =VLOOKUP(A36,'CPU-FORNEC'!A:J,9,0) -> 3532.13 | J36: =TRUNC(_xlfn.IFS(F36="SERV",I36*(1+$L$5/100),F36="SERV DIF",I36*(1+$L$6/100),F36="FORN",I36*(1+$L$7/100)),2) -> 4061.94 | K36: =TRUNC(H36*I36,2) -> 61812.27 | L36: =TRUNC(H36*J36,2) -> 71083.95
A37: F2 | B37: 5.2 | C37: CPU.8 | D37: CODEVASF | E37: TRANSPORTE DE EMULSÃO ASFÁLTICA PARA IMPRIMAÇÃO (EAI) | F37: SERV DIF | G37: T | H37: 17.5 | I37: =VLOOKUP(A37,'CPU-FORNEC'!A:J,9,0) -> 398 | J37: =TRUNC(_xlfn.IFS(F37="SERV",I37*(1+$L$5/100),F37="SERV DIF",I37*(1+$L$6/100),F37="FORN",I37*(1+$L$7/100)),2) -> 457.7 | K37: 6965 | L37: 8009.75
A38: F3 | B38: 5.3 | C38: CPU.9 | D38: CODEVASF | E38: AQUISIÇÃO DE EMULSAO ASFALTICA CATIONICA RR-1C - EXCLUSIVE TRANSPORTE | F38: FORN | G38: T | H38: 5.295 | I38: =VLOOKUP(A38,'CPU-FORNEC'!A:J,9,0) -> 3480.79 | J38: =TRUNC(_xlfn.IFS(F38="SERV",I38*(1+$L$5/100),F38="SERV DIF",I38*(1+$L$6/100),F38="FORN",I38*(1+$L$7/100)),2) -> 4002.9 | K38: 18430.78 | L38: 21195.35
A39: F4 | B39: 5.4 | C39: CPU.10 | D39: CODEVASF | E39: TRANSPORTE DE EMULSÃO ASFÁLTICA CATIONICA RR-1C | F39: SERV DIF | G39: T | H39: 5.295 | I39: =VLOOKUP(A39,'CPU-FORNEC'!A:J,9,0) -> 489.22 | J39: =TRUNC(_xlfn.IFS(F39="SERV",I39*(1+$L$5/100),F39="SERV DIF",I39*(1+$L$6/100),F39="FORN",I39*(1+$L$7/100)),2) -> 562.6 | K39: 2590.41 | L39: 2978.96
A40: F5 | B40: 5.5 | C40: CPU.11 | D40: CODEVASF | E40: AQUISIÇÃO DE CONCRETO ASFÁLTICO DE PETRÓLEO - CAP 50/70 - EXCLUSIVE TRANSPORTE | F40: FORN | G40: T | H40: 62 | I40: =VLOOKUP(A40,'CPU-FORNEC'!A:J,9,0) -> 4815.2 | J40: =TRUNC(_xlfn.IFS(F40="SERV",I40*(1+$L$5/100),F40="SERV DIF",I40*(1+$L$6/100),F40="FORN",I40*(1+$L$7/100)),2) -> 5537.48 | K40: 298542.4 | L40: 343323.76
A41: F6 | B41: 5.6 | C41: CPU.12 | D41: CODEVASF | E41: TRANSPORTE DE CONCRETO ASFÁLTICO DE PETRÓLEO - CAP 50/70 | F41: SERV DIF | G41: T | H41: 62 | I41: =VLOOKUP(A41,'CPU-FORNEC'!A:J,9,0) -> 387.6 | J41: =TRUNC(_xlfn.IFS(F41="SERV",I41*(1+$L$5/100),F41="SERV DIF",I41*(1+$L$6/100),F41="FORN",I41*(1+$L$7/100)),2) -> 445.74 | K41: 24031.2 | L41: 27635.88
B42: TOTAL GERAL DA OBRA COM BDI | K42: =SUM(K10,K16,K23,K29,K35) -> 1650992.97 | L42: =SUM(L10,L16,L23,L29,L35) -> 1999753.71

Sheet CPU-SERV
A1: 1 | B1: 1ª/GRD | K1: =J37 -> 4944.29
B2: OBRA: | C2: PAVIMENTAÇÃO ASFÁLTICA EM CBUQ - VIAS URBANAS DIVERSAS - SEDE E COMUNIDADE RIO DAS PEDRAS (GLAUCILÂNDIA / MG)
B3: Custo Unitário de Referência | E3: Minas Gerais
E4: Janeiro/2025 | H4: Produção da equipe | I4: 1 | J4: =VLOOKUP(A1,ORÇAMENTO!$A$10:$L$42,7,1) -> GL
B5: CPU.1 | C5: MOBILIZAÇÃO E DESMOBILIZAÇÃO | I5: Valores em reais (R$)
B6: A - EQUIPAMENTOS | D6: Quantidade | E6: Utilização | G6: Custo Horário | J6: Custo
E7: Operativa | F7: Improdutiva | G7: Produtivo | H7: Improdutivo | J7: Horário Total
B8: E9687 | C8: Caminhão carroceria com capacidade de 5 t - 115 kW | D8: 8 | E8: 0.6 | F8: 0.4 | G8: 146.8808 | H8: 57.4231 | J8: =D8*(E8*G8+F8*H8) -> 888.78176
B9: E9575 | C9: Caminhão basculante com caçamba estanque com capacidade de 14 m³ - 210 kW | D9: 8 | E9: 1 | F9: 0 | G9: 309.8394 | H9: 90.4122 | J9: =D9*(E9*G9+F9*H9) -> 2478.7152
H10: Custo horário total de equipamentos | J10: =SUM(J8:J9) -> 3367.49696
B11: B - MÃO DE OBRA | D11: Quantidade | E11: Unidade | G11: Custo Horário | H11: Custo Horário Total
B12: P9824 | C12: Servente | D12: 8 | E12: h | G12: 21.3355 | J12: =D12*G12 -> 170.684
J13: =D13*G13 -> 0
D14: Custo horário total de mão de obra | J14: =SUM(J12:J13) -> 170.684
D15: Custo horário total de execução | J15: =J10+J14 -> 3538.18096
D16: Custo unitário de execução | J16: =J15/I4 -> 3538.18096
H17: Custo do FIC | J17: 0
H18: Custo do FIT | J18: 0
B19: C - MATERIAL | D19: Quantidade | E19: Unidade | G19: Preço Unitário | H19: Custo Unitário
B20: - | C20: 0 | E20: 0 | G20: 0 | J20: =D20*G20 -> 0
B21: - | C21: 0 | E21: 0 | G21: 0 | J21: =D21*G21 -> 0
D22: Custo unitário total de material | J22: =SUM(J20:J21) -> 0
B23: D - ATIVIDADES AUXILIARES | D23: Quantidade | E23: Unidade | G23: Custo Unitário | H23: Custo Unitário
B24: 5914640 | C24: Transporte com cavalo mecânico com semirreboque com capacidade de 30 t - rodovia pavimentada | D24: 2466.87 | E24: tkm | G24: 0.57 | J24: =D24*G24 -> 1406.1159
B25: - | C25: 0 | D25: 0 | E25: 0 | G25: 0 | J25: =D25*G25 -> 0
D26: Custo total de atividades auxiliares | J26: =SUM(J24:J25) -> 1406.1159
H27: Subtotal | J27: =J16+J22+J26+J17+J18 -> 4944.29686
B28: E - TEMPO FIXO | D28: Código | E28: Quantidade | F28: Unidade | H28: Custo Unitário | I28: Custo Unitário
B29: - | C29: 0 | D29: - | F29: 0 | H29: 0 | J29: =ROUNDDOWN(E29*H29,4) -> 0
B30: - | C30: 0 | D30: - | F30: 0 | H30: 0 | J30: =ROUNDDOWN(E30*H30,4) -> 0
D31: Custo unitário total de tempo fixo | J31: =SUM(J29:J30) -> 0
B32: F - MOMENTO DE TRANSPORTE | D32: Quantidade | E32: Unidade | F32: DMT | J32: Custo Unitário
F33: LN | G33: RP | H33: P
B34: - | C34: 0 | E34: tkm
B35: - | C35: 0 | E35: tkm
D36: Custo unitário total de transporte
F37: Custo unitário direto total | J37: =TRUNC(J27+J31,2) -> 4944.29
B38: Obs.
A40: =A1+1 -> 2 | B40: 1ª/GRD | K40: =J81 -> 132621.79
B41: OBRA: | C41: PAVIMENTAÇÃO ASFÁLTICA EM CBUQ - VIAS URBANAS DIVERSAS - SEDE E COMUNIDADE RIO DAS PEDRAS (GLAUCILÂNDIA / MG)
B42: Custo Unitário de Referência | E42: Minas Gerais
E43: Janeiro/2025 | H43: Produção da equipe | I43: 0.1666666667 | J43: =VLOOKUP(A40,ORÇAMENTO!$A$10:$L$42,7,1) -> GL
B44: CPU.2 | C44: ADMINISTRAÇÃO LOCAL | I44: Valores em reais (R$)
B45: A - EQUIPAMENTOS | D45: Quantidade | E45: Utilização | G45: Custo Horário | J45: Custo
E46: Operativa | F46: Improdutiva | G46: Produtivo | H46: Improdutivo | J46: Horário Total
B47: - | C47: 0 | G47: 0 | H47: 0 | J47: =D47*(E47*G47+F47*H47) -> 0
B48: - | C48: 0 | G48: 0 | H48: 0 | J48: =D48*(E48*G48+F48*H48) -> 0
H49: Custo horário total de equipamentos | J49: =SUM(J47:J48) -> 0
B50: B - MÃO DE OBRA | D50: Quantidade | E50: Unidade | G50: Custo Horário | H50: Custo Horário Total
B51: P9812 | C51: Engenheiro | D51: 0.2077329218 | E51: mês | G51: 26055.5515 | J51: =D51*G51 -> 5412.595843
B52: P9840 | C52: Encarregado geral | D52: 1 | E52: mês | G52: 9987.873184 | J52: =D52*G52 -> 9987.873184
B53: P9876 | C53: Técnico de segurança do trabalho | D53: 0.5 | E53: mês | G53: 5884.1547 | J53: 2942.07735
B54: P9858 | C54: Laboratorista | D54: 0.5 | E54: mês | G54: 4782.953025 | J54: 2391.476512
B55: P9806 | C55: Auxiliar administrativo | D55: 0.25 | E55: mês | G55: 3354.039825 | J55: 838.5099562
D56: Custo horário total de mão de obra | J56: =SUM(J51:J55) -> 21572.53285
D57: Custo horário total de execução | J57: =J49+J56 -> 21572.53285
D58: Custo unitário de execução | J58: =J57/I43 -> 129435.1971
H59: Custo do FIC | J59: -
H60: Custo do FIT | J60: -
B61: C - MATERIAL | D61: Quantidade | E61: Unidade | G61: Preço Unitário | H61: Custo Unitário
B62: - | C62: 0 | D62: 0 | E62: 0 | G62: 0 | J62: =D62*G62 -> 0
B63: - | C63: 0 | D63: 0 | E63: 0 | G63: 0 | J63: 0
D64: Custo unitário total de material | J64: =SUM(J62:J63) -> 0
B65: D - ATIVIDADES AUXILIARES | D65: Quantidade | E65: Unidade | G65: Custo Unitário | H65: Custo Unitário
B66: 14250 | C66: Energia Elétrica | D66: 360 | E66: kwh | G66: 0.95 | J66: =D66*G66 -> 342
B67: 44480 | C67: Tarifa A - Água e Esgoto | D67: 24 | E67: m³ | G67: 17.97 | J67: =D67*G67 -> 431.28
B68: 5212560 | C68: Placa de advertência para sinalização de obras montada em suporte metálico móvel, lado 1,00 m - utilização de 600 ciclos - fornecimento, 01 implantação e 01 retirada diária | D68: 528 | E68: un.dia | G68: 3.89 | J68: =D68*G68 -> 2053.92
B69: Cotação | C69: Telefone | D69: 6 | E69: mês | G69: 59.9 | J69: =D69*G69 -> 359.4
D70: Custo total de atividades auxiliares | J70: =SUM(J66:J69) -> 3186.6
H71: Subtotal | J71: =J58+J64+J70 -> 132621.7971
B72: E - TEMPO FIXO | D72: Código | E72: Quantidade | F72: Unidade | H72: Custo Unitário | I72: Custo Unitário
B73: - | C73: 0 | D73: - | E73: 0 | F73: t | H73: 0 | J73: =ROUNDDOWN(E73*H73,4) -> 0
B74: - | C74: 0 | D74: - | E74: 0 | F74: t | H74: 0 | J74: =ROUNDDOWN(E74*H74,4) -> 0
D75: Custo unitário total de tempo fixo | J75: =SUM(J73:J74) -> 0
B76: F - MOMENTO DE TRANSPORTE | D76: Quantidade | E76: Unidade | F76: DMT | J76: Custo Unitário
F77: LN | G77: RP | H77: P
B78: - | C78: 0 | E78: tkm
B79: - | C79: 0 | E79: tkm
D80: Custo unitário total de transporte
F81: Custo unitário direto total | J81: =TRUNC(J71+J75,2) -> 132621.79
B82: Obs.
A84: =A40+1 -> 3 | B84: 1ª/GRD | K84: =J120 -> 7137.55
B85: OBRA: | C85: PAVIMENTAÇÃO ASFÁLTICA EM CBUQ - VIAS URBANAS DIVERSAS - SEDE E COMUNIDADE RIO DAS PEDRAS (GLAUCILÂNDIA / MG)
B86: Custo Unitário de Referência | E86: Minas Gerais
E87: Janeiro/2025 | H87: Produção da equipe | I87: 1 | J87: =VLOOKUP(A84,ORÇAMENTO!$A$10:$L$42,7,1) -> GL
B88: CPU.3 | C88: CANTEIRO DE OBRAS | I88: Valores em reais (R$)
B89: A - EQUIPAMENTOS | D89: Quantidade | E89: Utilização | G89: Custo Horário | J89: Custo
E90: Operativa | F90: Improdutiva | G90: Produtivo | H90: Improdutivo | J90: Horário Total
B91: - | C91: 0 | G91: 0 | H91: 0 | J91: =D91*(E91*G91+F91*H91) -> 0
B92: - | C92: 0 | G92: 0 | H92: 0 | J92: =D92*(E92*G92+F92*H92) -> 0
H93: Custo horário total de equipamentos | J93: =SUM(J91:J92) -> 0
B94: B - MÃO DE OBRA | D94: Quantidade | E94: Unidade | G94: Custo Horário | H94: Custo Horário Total
B95: P9824 | C95: Servente | D95: 8 | E95: h | G95: 21.3355 | J95: =D95*G95 -> 170.684
B96: P9808 | C96: Carpinteiro | D96: 8 | E96: h | G96: 26.4529 | J96: =D96*G96 -> 211.6232
D97: Custo horário total de mão de obra | J97: =SUM(J95:J96) -> 382.3072
D98: Custo horário total de execução | J98: =J93+J97 -> 382.3072
D99: Custo unitário de execução | J99: =J98/I87 -> 382.3072
H100: Custo do FIC | J100: -
H101: Custo do FIT | J101: -
B102: C - MATERIAL | D102: Quantidade | E102: Unidade | G102: Preço Unitário | H102: Custo Unitário
B103: M0053 | C103: Tela plástica em polipropileno na cor laranja para tapume - L = 1,2 m | D103: 60 | E103: m | G103: 1.775 | J103: =D103*G103 -> 106.5
B104: - | C104: 0 | D104: 0 | E104: 0 | G104: 0 | J104: =D104*G104 -> 0
D105: Custo unitário total de material | J105: =SUM(J103:J104) -> 106.5
B106: D - ATIVIDADES AUXILIARES | D106: Quantidade | E106: Unidade | G106: Custo Unitário | H106: Custo Unitário
B107: 10775 | C107: Locação de container 2,30 X 6,00 m, alt. 2,50 m, com 1 sanitário, para escritório, completo, sem divisórias internas | D107: 3 | E107: mês | G107: 985 | J107: =D107*G107 -> 2955
B108: 10779 | C108: Locação de container 2,30 X 4,30 m, alt. 2,50 M, p/ sanitário, c/ 5 bacias, 1 lavatório e 4 mictórios | D108: 3 | E108: mês | G108: 1231.25 | J108: =D108*G108 -> 3693.75
D109: Custo total de atividades auxiliares | J109: =SUM(J107:J108) -> 6648.75
H110: Subtotal | J110: =J99+J105+J109 -> 7137.5572
B111: E - TEMPO FIXO | D111: Código | E111: Quantidade | F111: Unidade | H111: Custo Unitário | I111: Custo Unitário
B112: - | C112: 0 | D112: - | E112: 0 | F112: t | H112: 0 | J112: =ROUNDDOWN(E112*H112,4) -> 0
B113: - | C113: 0 | D113: - | E113: 0 | F113: t | H113: 0 | J113: =ROUNDDOWN(E113*H113,4) -> 0
D114: Custo unitário total de tempo fixo | J114: =SUM(J112:J113) -> 0
B115: F - MOMENTO DE TRANSPORTE | D115: Quantidade | E115: Unidade | F115: DMT | J115: Custo Unitário
F116: LN | G116: RP | H116: P
B117: - | C117: 0 | D117: 0 | E117: tkm
B118: - | C118: 0 | D118: 0 | E118: tkm
D119: Custo unitário total de transporte
F120: Custo unitário direto total | J120: =TRUNC(J110+J114,2) -> 7137.55
B121: Obs.
A123: =A84+1 -> 4 | B123: 1ª/GRD | K123: =J161 -> 351.42
B124: OBRA: | C124: PAVIMENTAÇÃO ASFÁLTICA EM CBUQ - VIAS URBANAS DIVERSAS - SEDE E COMUNIDADE RIO DAS PEDRAS (GLAUCILÂNDIA / MG)
B125: Custo Unitário de Referência | E125: Minas Gerais
E126: Janeiro/2025 | H126: Produção da equipe | I126: 1 | J126: =VLOOKUP(A123,ORÇAMENTO!$A$10:$L$42,7,1) -> M2
B127: 103689 | C127: PLACA DE OBRA EM CHAPA DE AÇO GALVANIZADO | I127: Valores em reais (R$)
B128: A - EQUIPAMENTOS | D128: Quantidade | E128: Utilização | G128: Custo Horário | J128: Custo
E129: Operativa | F129: Improdutiva | G129: Produtivo | H129: Improdutivo | J129: Horário Total
B130: - | C130: 0 | G130: 0 | H130: 0 | J130: =D130*(E130*G130+F130*H130) -> 0
B131: - | C131: 0 | G131: 0 | H131: 0 | J131: =D131*(E131*G131+F131*H131) -> 0
H132: Custo horário total de equipamentos | J132: =SUM(J130:J131) -> 0
B133: B - MÃO DE OBRA | D133: Quantidade | E133: Unidade | G133: Custo Horário | H133: Custo Horário Total
B134: P9824 | C134: Servente | D134: 1.1186 | E134: h | G134: 21.3355 | J134: =D134*G134 -> 23.8658903
B135: P9808 | C135: Carpinteiro | D135: 0.3729 | E135: h | G135: 26.4529 | J135: =D135*G135 -> 9.86428641
D136: Custo horário total de mão de obra | J136: =SUM(J134:J135) -> 33.73017671
D137: Custo horário total de execução | J137: =J132+J136 -> 33.73017671
D138: Custo unitário de execução | J138: =J137/I126 -> 33.73017671
H139: Custo do FIC | J139: -
H140: Custo do FIT | J140: -
B141: C - MATERIAL | D141: Quantidade | E141: Unidade | G141: Preço Unitário | H141: Custo Unitário
B142: M1358 | C142: Sarrafo em madeira de terceira - E = 2,5 cm e L = 5 cm | D142: 6.4166 | E142: m | G142: 1.9666 | J142: =D142*G142 -> 12.61888556
B143: M1205 | C143: Prego de ferro | D143: 0.0245 | E143: kg | G143: 16.5445 | J143: =D143*G143 -> 0.40534025
B144: M0998 | C144: Madeira estrutural de eucalipto | D144: 0.022608 | E144: m³ | G144: 2418.0391 | J144: =D144*G144 -> 54.66702797
B145: 4813 | C145: Placa de obra (para construção civil) em chapa galvanizada *N. 22*, adesivada, de *2,4 X 1,2* m (sem postes para fixação) | D145: 1 | E145: m² | G145: 250 | J145: 250
D146: Custo unitário total de material | J146: =SUM(J142:J145) -> 317.6912538
B147: D - ATIVIDADES AUXILIARES | D147: Quantidade | E147: Unidade | G147: Custo Unitário | H147: Custo Unitário
B148: - | C148: 0 | D148: 0 | E148: 0 | G148: 0 | J148: =D148*G148 -> 0
B149: - | C149: 0 | D149: 0 | E149: 0 | G149: 0 | J149: =D149*G149 -> 0
D150: Custo total de atividades auxiliares | J150: =SUM(J148:J149) -> 0
H151: Subtotal | J151: =J138+J146+J150 -> 351.4214305
B152: E - TEMPO FIXO | D152: Código | E152: Quantidade | F152: Unidade | H152: Custo Unitário | I152: Custo Unitário
B153: - | C153: 0 | D153: - | E153: 0 | F153: t | H153: 0 | J153: =ROUNDDOWN(E153*H153,4) -> 0
B154: - | C154: 0 | D154: - | E154: 0 | F154: t | H154: 0 | J154: =ROUNDDOWN(E154*H154,4) -> 0
D155: Custo unitário total de tempo fixo | J155: =SUM(J153:J154) -> 0
B156: F - MOMENTO DE TRANSPORTE | D156: Quantidade | E156: Unidade | F156: DMT | J156: Custo Unitário
F157: LN | G157: RP | H157: P
B158: - | C158: 0 | D158: 0 | E158: tkm
B159: - | C159: 0 | D159: 0 | E159: tkm
D160: Custo unitário total de transporte
F161: Custo unitário direto total | J161: =TRUNC(J151+J155,2) -> 351.42
B162: Obs.
A164: 6 | B164: 1ª/GRD | K164: =J202 -> 0.49
B165: OBRA: | C165: PAVIMENTAÇÃO ASFÁLTICA EM CBUQ - VIAS URBANAS DIVERSAS - SEDE E COMUNIDADE RIO DAS PEDRAS (GLAUCILÂNDIA / MG)
B166: Custo Unitário de Referência | E166: Minas Gerais
E167: Janeiro/2025 | H167: Produção da equipe | I167: 1 | J167: =VLOOKUP(A164,ORÇAMENTO!$A$10:$L$42,7,1) -> M2
B168: 78472 | C168: SERVIÇOS TOPOGRÁFICOS PARA PAVIMENTAÇÃO, INCLUSIVE LEVANTAMENTO PLANIALTIMÉTRICO CADASTRAL, GERAÇÃO DE NOTAS DE SERVIÇO, SEÇÕES TRANSVERSAIS E GREIDE, ESTAQUEAMENTO E ACOMPANHAMENTO EXECUTIVO | I168: Valores em reais (R$)
B169: A - EQUIPAMENTOS | D169: Quantidade | E169: Utilização | G169: Custo Horário | J169: Custo
E170: Operativa | F170: Improdutiva | G170: Produtivo | H170: Improdutivo | J170: Horário Total
B171: 92145 | C171: Caminhonete cabine simples com motor 1.6 flex, câmbio manual, potência 101/104 cv, 2 portas | D171: 0.0005 | E171: 1 | F171: 0 | G171: 76.5 | H171: 0 | J171: =D171*(E171*G171+F171*H171) -> 0.03825
B172: - | C172: 0 | D172: 0 | E172: 1 | F172: 0 | G172: 0 | H172: 0 | J172: =D172*(E172*G172+F172*H172) -> 0
H173: Custo horário total de equipamentos | J173: =SUM(J171:J172) -> 0.03825
B174: B - MÃO DE OBRA | D174: Quantidade | E174: Unidade | G174: Custo Horário | H174: Custo Horário Total
B175: P9949 | C175: Topógrafo | D175: 1.590909091e-05 | E175: mês | G175: 6816.9716 | H175: 28.40404833 | J175: =D175*G175 -> 0.1084518209
B176: P9950 | C176: Auxiliar de topografia | D176: 1.590909091e-05 | E176: mês | G176: 6157.8463 | H176: 22.80683815 | J176: =D176*G176 -> 0.09796573659
B177: P9824 | C177: Servente | D177: 0.0075 | E177: h | G177: 21.3355 | H177: 0.08889791667 | J177: =D177*G177 -> 0.16001625
B178: P9848 | C178: Desenhista | D178: 9.090909091e-06 | E178: mês | G178: 10307.7486 | H178: 38.17684667 | J178: =D178*G178 -> 0.09370680545
D179: Custo horário total de mão de obra | J179: =SUM(J175:J178) -> 0.460140613
D180: Custo horário total de execução | J180: =J173+J179 -> 0.498390613
D181: Custo unitário de execução | J181: =J180/I167 -> 0.498390613
H182: Custo do FIC | J182: -
H183: Custo do FIT | J183: -
B184: C - MATERIAL | D184: Quantidade | E184: Unidade | G184: Preço Unitário | H184: Custo Unitário
B185: - | C185: 0 | D185: 0 | E185: 0 | G185: 0 | J185: =D185*G185 -> 0
B186: - | C186: 0 | D186: 0 | E186: 0 | G186: 0 | J186: 0
D187: Custo unitário total de material | J187: =SUM(J185:J186) -> 0
B188: D - ATIVIDADES AUXILIARES | D188: Quantidade | E188: Unidade | G188: Custo Unitário | H188: Custo Unitário
B189: - | C189: 0 | D189: 0 | E189: 0 | G189: 0 | J189: =D189*G189 -> 0
B190: - | C190: 0 | D190: 0 | E190: 0 | G190: 0 | J190: =D190*G190 -> 0
D191: Custo total de atividades auxiliares | J191: =SUM(J189:J190) -> 0
H192: Subtotal | J192: =J181+J187+J191 -> 0.498390613
B193: E - TEMPO FIXO | D193: Código | E193: Quantidade | F193: Unidade | H193: Custo Unitário | I193: Custo Unitário
B194: - | C194: 0 | D194: - | E194: 0 | F194: t | H194: 0 | J194: =ROUNDDOWN(E194*H194,4) -> 0
B195: - | C195: 0 | D195: - | E195: 0 | F195: t | H195: 0 | J195: =ROUNDDOWN(E195*H195,4) -> 0
D196: Custo unitário total de tempo fixo | J196: =SUM(J194:J195) -> 0
B197: F - MOMENTO DE TRANSPORTE | D197: Quantidade | E197: Unidade | F197: DMT | J197: Custo Unitário
F198: LN | G198: RP | H198: P
B199: - | C199: 0 | D199: 0 | E199: tkm
B200: - | C200: 0 | D200: 0 | E200: tkm
D201: Custo unitário total de transporte
F202: Custo unitário direto total | J202: =TRUNC(J192+J196,2) -> 0.49
B203: Obs.
A205: =A164+1 -> 7 | B205: 1ª/GRD | K205: =J241 -> 6.74
... 683 more rows

Sheet CPU-FORNEC
A1: 1 | B1: CODEVASF | E1: COMPOSIÇÃO DE PREÇO UNITÁRIO | I1: =H24 -> 0 | J1: =H26 -> 0 | K1: BDI CALCULADO: | M1: =ORÇAMENTO!L6 -> 15
B2: OBRA: | C2: PAVIMENTAÇÃO ASFÁLTICA EM CBUQ - VIAS URBANAS DIVERSAS - SEDE E COMUNIDADE RIO DAS PEDRAS (GLAUCILÂNDIA / MG) | G2: DATA: | H2: =ORÇAMENTO!C6 -> ABRIL / 2025 | K2: BDI DIFERENCIADO: | M2: ='BDI FORN'!D31/100 -> 0.15
B3: SERVIÇO: | C3: CPU.1 | E3: Referência: | F3: CODEVASF | G3: UNIDADE: | H3: =VLOOKUP(A1,ORÇAMENTO!A11:L30,5) -> MOBILIZAÇÃO E DESMOBILIZAÇÃO
B5: TIPO ITEM | C5: CODIGO ITEM | D5: DESCRIÇÃO ITEM | E5: UNIDADE ITEM | F5: COEFICIENTE | G5: PRECO UNITARIO | H5: CUSTO TOTAL | J5: distancia = | K5: 90 | L5: B.DESPACHO
B6: EQUIPAMENTOS | J6: Pá carregadeira | M6: 10.1 | N6: ton
C7: E9001 | D7: E9001 | E7: E9001 | G7: E9001
B10: MÃO DE OBRA
B14: MATERIAIS
H17: =ROUNDDOWN(F17*G17,2) -> 0 | J17: Motoniveladora | M17: 12.47 | N17: ton
B18: ATIVIDADES AUXILIARES | J18: Trator de pneus | M18: 2.8 | N18: ton
H19: =ROUNDDOWN(F19*G19,2) -> 0
H20: 0
H21: 0
H22: =ROUNDDOWN(F22*G22,2) -> 0 | J22: Rolo Compactador | M22: 15.33 | N22: ton
B23: PRODUÇÃO DA EQUIPE | E23: 1 | F23: CUSTO | H23: =SUM(H6:H22) -> 0 | J23: Grade de disco | M23: 1 | N23: ton
B24: TOTAL | H24: =H23/E23 -> 0 | I24: OK | J24: RETROESCAVADEIRA | M24: 6.67 | N24: ton
B25: BDI % | H25: =1+$M$1 -> 16
B26: TOTAL DO SERVIÇO - R$ | H26: =ROUND(H24*H25,2) -> 0
A28: F1 | B28: CODEVASF | E28: COMPOSIÇÃO DE PREÇO UNITÁRIO | I28: =H35 -> 3532.13 | J28: =H37 -> 4061.95
B29: OBRA: | C29: PAVIMENTAÇÃO ASFÁLTICA EM CBUQ - VIAS URBANAS DIVERSAS - SEDE E COMUNIDADE RIO DAS PEDRAS (GLAUCILÂNDIA / MG) | G29: DATA: | H29: =$H$2 -> ABRIL / 2025
B30: SERVIÇO: | C30: AQUISIÇÃO DE EMULSÃO ASFÁLTICA PARA IMPRIMAÇÃO (EAI) - EXCLUSIVE TRANSPORTE | E30: Referência: | F30: CPU.7 | G30: UNIDADE: | H30: =VLOOKUP(A28,ORÇAMENTO!$A$11:$L$49,7) -> T
B32: TIPO ITEM | C32: CODIGO ITEM | D32: DESCRIÇÃO ITEM | E32: UNIDADE ITEM | F32: COEFICIENTE | G32: PRECO UNITARIO | H32: CUSTO TOTAL
B33: INSUMO | C33: ANP | D33: EMULSÃO ASFÁLTICA PARA SERVIÇO DE IMPRIMAÇÃO (MEMÓRIA EM ANEXO) | E33: T | F33: 1 | G33: 3532.13706 | H33: =ROUNDDOWN(F33*G33,2) -> 3532.13
B34: PRODUÇÃO DA EQUIPE | E34: 1 | F34: CUSTO | H34: =SUM(H33:H33) -> 3532.13
B35: TOTAL | H35: =H34/E34 -> 3532.13
B36: BDI % | H36: =1+$M$2 -> 1.15
B37: TOTAL DO SERVIÇO - R$ | H37: =ROUND(H35*H36,2) -> 4061.95 | I37: OK
A39: F2 | B39: CODEVASF | E39: COMPOSIÇÃO DE PREÇO UNITÁRIO | I39: =H46 -> 398 | J39: =H48 -> 457.7
B40: OBRA: | C40: PAVIMENTAÇÃO ASFÁLTICA EM CBUQ - VIAS URBANAS DIVERSAS - SEDE E COMUNIDADE RIO DAS PEDRAS (GLAUCILÂNDIA / MG) | G40: DATA: | H40: =$H$2 -> ABRIL / 2025
B41: SERVIÇO: | C41: TRANSPORTE DE EMULSÃO ASFÁLTICA PARA IMPRIMAÇÃO (EAI) | E41: Referência: | F41: CPU.8 | G41: UNIDADE: | H41: =VLOOKUP(A39,ORÇAMENTO!$A$11:$L$49,7) -> T
B43: TIPO ITEM | C43: CODIGO ITEM | D43: DESCRIÇÃO ITEM | E43: UNIDADE ITEM | F43: COEFICIENTE | G43: PRECO UNITARIO | H43: CUSTO TOTAL
B44: INSUMO | C44: - | D44: TRANSPORTE DE EMULSÃO ASFÁLTICA PARA IMPRIMAÇÃO (EAI), INCLUINDO CUSTO TOTAL DO TRANSPORTE (COMBUSTÍVEL, PEDÁGIOS, ETC.) E ICMS - MEMÓRIA ANEXA | E44: T | F44: 1 | G44: 398.0042857 | H44: =ROUNDDOWN(F44*G44,2) -> 398
B45: PRODUÇÃO DA EQUIPE | E45: 1 | F45: CUSTO | H45: =SUM(H44:H44) -> 398
B46: TOTAL | H46: =H45/E45 -> 398
B47: BDI % | H47: =1+$M$2 -> 1.15
B48: TOTAL DO SERVIÇO - R$ | H48: =ROUND(H46*H47,2) -> 457.7 | I48: OK
A50: F3 | B50: CODEVASF | E50: COMPOSIÇÃO DE PREÇO UNITÁRIO | I50: =H57 -> 3480.79 | J50: =H59 -> 4002.91
B51: OBRA: | C51: PAVIMENTAÇÃO ASFÁLTICA EM CBUQ - VIAS URBANAS DIVERSAS - SEDE E COMUNIDADE RIO DAS PEDRAS (GLAUCILÂNDIA / MG) | G51: DATA: | H51: =$H$2 -> ABRIL / 2025
B52: SERVIÇO: | C52: AQUISIÇÃO DE EMULSAO ASFALTICA CATIONICA RR-1C - EXCLUSIVE TRANSPORTE | E52: Referência: | F52: CPU.9 | G52: UNIDADE: | H52: =VLOOKUP(A50,ORÇAMENTO!$A$11:$L$49,7) -> T
B54: TIPO ITEM | C54: CODIGO ITEM | D54: DESCRIÇÃO ITEM | E54: UNIDADE ITEM | F54: COEFICIENTE | G54: PRECO UNITARIO | H54: CUSTO TOTAL
B55: INSUMO | C55: ANP | D55: EMULSÃO ASFÁLTICA CATIÔNICA RR-1C(MEMÓRIA EM ANEXO) | E55: T | F55: 1 | G55: 3480.792613 | H55: =ROUNDDOWN(F55*G55,2) -> 3480.79
B56: PRODUÇÃO DA EQUIPE | E56: 1 | F56: CUSTO | H56: =SUM(H55:H55) -> 3480.79
B57: TOTAL | H57: =H56/E56 -> 3480.79 | I57: OK
B58: BDI % | H58: =1+$M$2 -> 1.15
B59: TOTAL DO SERVIÇO - R$ | H59: =ROUND(H57*H58,2) -> 4002.91
A61: F4 | B61: CODEVASF | E61: COMPOSIÇÃO DE PREÇO UNITÁRIO | I61: =H68 -> 489.22 | J61: =H70 -> 562.6
B62: OBRA: | C62: PAVIMENTAÇÃO ASFÁLTICA EM CBUQ - VIAS URBANAS DIVERSAS - SEDE E COMUNIDADE RIO DAS PEDRAS (GLAUCILÂNDIA / MG) | G62: DATA: | H62: =$H$2 -> ABRIL / 2025
B63: SERVIÇO: | C63: TRANSPORTE DE EMULSÃO ASFÁLTICA CATIONICA RR-1C | E63: Referência: | F63: CPU.10 | G63: UNIDADE: | H63: =VLOOKUP(A61,ORÇAMENTO!$A$11:$L$49,7) -> T
B65: TIPO ITEM | C65: CODIGO ITEM | D65: DESCRIÇÃO ITEM | E65: UNIDADE ITEM | F65: COEFICIENTE | G65: PRECO UNITARIO | H65: CUSTO TOTAL
B66: INSUMO | C66: - | D66: TRANSPORTE DE EMULSÃO ASFÁLTICA CATIONICA TIPO RR-1C, INCLUINDO CUSTO TOTAL DO TRANSPORTE (COMBUSTÍVEL, PEDÁGIOS, ETC.) E ICMS - MEMÓRIA ANEXA | E66: T | F66: 1 | G66: 489.2294901 | H66: =ROUNDDOWN(F66*G66,2) -> 489.22
B67: PRODUÇÃO DA EQUIPE | E67: 1 | F67: CUSTO | H67: =SUM(H66:H66) -> 489.22
B68: TOTAL | H68: =H67/E67 -> 489.22 | I68: OK
B69: BDI % | H69: =1+$M$2 -> 1.15
B70: TOTAL DO SERVIÇO - R$ | H70: =ROUND(H68*H69,2) -> 562.6
A72: F5 | B72: CODEVASF | E72: COMPOSIÇÃO DE PREÇO UNITÁRIO | I72: =H79 -> 4815.2 | J72: =H81 -> 5537.48
B73: OBRA: | C73: PAVIMENTAÇÃO ASFÁLTICA EM CBUQ - VIAS URBANAS DIVERSAS - SEDE E COMUNIDADE RIO DAS PEDRAS (GLAUCILÂNDIA / MG) | G73: DATA: | H73: =$H$2 -> ABRIL / 2025
B74: SERVIÇO: | C74: AQUISIÇÃO DE CONCRETO ASFÁLTICO DE PETRÓLEO - CAP 50/70 - EXCLUSIVE TRANSPORTE | E74: Referência: | F74: CPU.11 | G74: UNIDADE: | H74: =VLOOKUP(A72,ORÇAMENTO!$A$11:$L$49,7) -> T
B76: TIPO ITEM | C76: CODIGO ITEM | D76: DESCRIÇÃO ITEM | E76: UNIDADE ITEM | F76: COEFICIENTE | G76: PRECO UNITARIO | H76: CUSTO TOTAL
B77: INSUMO | C77: 1518 | D77: CIMENTOS ASFÁLTICO DE PETRÓLEO TIPO CAP 50/70 (MEMÓRIA EM ANEXO) | E77: T | F77: 1 | G77: 4815.205131 | H77: =ROUNDDOWN(F77*G77,2) -> 4815.2
B78: PRODUÇÃO DA EQUIPE | E78: 1 | F78: CUSTO | H78: =SUM(H77:H77) -> 4815.2
B79: TOTAL | H79: =H78/E78 -> 4815.2
B80: BDI % | H80: =1+$M$2 -> 1.15
B81: TOTAL DO SERVIÇO - R$ | H81: =ROUND(H79*H80,2) -> 5537.48
A83: F6 | B83: CODEVASF | E83: COMPOSIÇÃO DE PREÇO UNITÁRIO | I83: =H90 -> 387.6 | J83: =H92 -> 445.74
B84: OBRA: | C84: PAVIMENTAÇÃO ASFÁLTICA EM CBUQ - VIAS URBANAS DIVERSAS - SEDE E COMUNIDADE RIO DAS PEDRAS (GLAUCILÂNDIA / MG) | G84: DATA: | H84: =$H$2 -> ABRIL / 2025
B85: SERVIÇO: | C85: TRANSPORTE DE CONCRETO ASFÁLTICO DE PETRÓLEO - CAP 50/70 | E85: Referência: | F85: CPU.12 | G85: UNIDADE: | H85: =VLOOKUP(A83,ORÇAMENTO!$A$11:$L$49,7) -> T
B87: TIPO ITEM | C87: CODIGO ITEM | D87: DESCRIÇÃO ITEM | E87: UNIDADE ITEM | F87: COEFICIENTE | G87: PRECO UNITARIO | H87: CUSTO TOTAL
B88: INSUMO | C88: - | D88: TRANSPORTE DE CIMENTO ASFÁLTICO DE PETRÓLEO TIPO CAP 50-70, INCLUINDO CUSTO TOTAL DO TRANSPORTE (COMBUSTÍVEL, PEDÁGIOS, ETC.) E ICMS - MEMÓRIA ANEXA | E88: T | F88: 1 | G88: 387.6069028 | H88: =ROUNDDOWN(F88*G88,2) -> 387.6
B89: PRODUÇÃO DA EQUIPE | E89: 1 | F89: CUSTO | H89: =SUM(H88:H88) -> 387.6
B90: TOTAL | H90: =H89/E89 -> 387.6
B91: BDI % | H91: =1+$M$2 -> 1.15
B92: TOTAL DO SERVIÇO - R$ | H92: =ROUND(H90*H91,2) -> 445.74

Sheet BDI SERV
B1: DETALHAMENTO DO BDI - SERVIÇOS
B4: Item | C4: Descrição dos Serviços | D4: % - PV | E4: % - CD
B6: 1 | C6: ADMINISTRAÇÃO CENTRAL | E6: =SUM(E7:E9) -> 4.01
B7: 1.1 | C7: ESCRITÓRIO CENTRAL | E7: 4.01
B8: 1.2 | C8: VIAGENS
B9: 1.3 | C9: OUTROS
B11: 2 | C11: IMPOSTOS E TAXAS | D11: =SUM(D12:D15) -> 7.65 | E11: =SUM(E12:E15) -> 0
B12: 2.1 | C12: ISS - Proposta | D12: =D34*100 -> 4
B13: 2.2 | C13: PIS | D13: 0.65
B14: 2.3 | C14: Cofins | D14: 3
B15: 2.4 | C15: Contribuição Previdenciaria (CPRB)
B17: 3 | C17: TAXA DE RISCO | E17: =SUM(E18:E20) -> 0.96
B18: 3.1 | C18: SEGURO | E18: 0.2
B19: 3.2 | C19: RISCO | E19: 0.56
B20: 3.3 | C20: GARANTIA | E20: 0.2
B22: 4 | C22: DESPESAS FINANCEIRAS | E22: 1.11
B24: 5 | C24: LUCRO | E24: 7.3
B26: BDI APRESENTADO: | E26: =IF($D$41=$C$43,$D$43,IF($D$41=$C$44,$D$44,IF($D$41=$C$44,$D$44,IF($D$41=$C$45,$D$45,0)))) -> 23.32
C28: Legislação Municipal: | D28: Lei Municipal nº 01/2001
C29: Município: | D29: Glaucilândia
C30: Alíquota ISSQN: | D30: 0.05 | E30: Município
C31: Base de Cálculo: | D31: Dedução - Material | E31: Art.41 §3º-a
C32: Valor Serviço: | D32: 1238620.93
C33: Dedução - Material (estimado): | D33: =0.2*D32 -> 247724.186 | E33: =D33/D32 -> 0.2
C34: ISSQN BDI: | D34: =IF(D32="",0,ROUND(IF(D31=D49,((1-(D33/D32))*D30),D30*D31),4)) -> 0.04 | E34: (*)
A36: Acórdão nº 2.622/2013 - TCU Plenário
A37: BDI = ARRED((((((1+(AC+TR)/100)*(1+DF/100)*(1+L/100))/(1-IMP/100))-1)*100);2)
B39: (*) É obrigação da licitante a verificação da Legislação Tributária vigente no município, bem como o cálculo dos valores totais de serviços e materiais estimados, para apresentação de sua proposta.
C41: Forma de Cálculo do BDI: | D41: BDI - Acórdão nº 2.622/2013 - TCU
C43: BDI - Digitado | D43: =ROUND(E6+E11+E17+E22+E24,2) -> 13.38
C44: BDI - Calculado | D44: =ROUND((((1+(E6/100+E22/100+E17/100))/(1-(D11/100+E24/100)))-1)*100,2) -> 24.73
C45: BDI - Acórdão nº 2.622/2013 - TCU | D45: =ROUND((((((1+(E6+E17)/100)*(1+E22/100)*(1+E24/100))/(1-D11/100))-1)*100),2) -> 23.32
D49: Dedução - Material | E49: Município
D50: 0.1 | E50: Simples Nacional
D51: 0.2 | E51: Municípios Indefinidos
D52: 0.3
D53: 0.4
D54: 0.5
D55: 0.6
D56: 0.7
D57: 0.8
D58: 0.9
D59: 1
D60: =E31 -> Art.41 §3º-a

Sheet BDI FORN
B1: DETALHAMENTO DO BDI - FORNECIMENTO (MATERIAL ASFÁLTICO)
B4: Item | C4: Descrição dos Serviços | D4: % | E4: %
D5: PV | E5: CD
B7: 1 | C7: ADMINISTRAÇÃO CENTRAL | E7: 3.45
B8: 1.1 | C8: ESCRITÓRIO CENTRAL
B9: 1.2 | C9: VIAGENS
B10: 1.3 | C10: OUTROS
B12: 2 | C12: IMPOSTOS E TAXAS | D12: =SUM(D13:D16) -> 3.65 | E12: =SUM(E13:E16) -> 4.56
B13: 2.1 | C13: ISS (*) | E13: =ROUND(D13*1.2515,2) -> 0
B14: 2.2 | C14: PIS | D14: 0.65 | E14: =ROUND(D14*1.2515,2) -> 0.81
B15: 2.3 | C15: Cofins | D15: 3 | E15: =ROUND(D15*1.2515,2) -> 3.75
B16: 2.4 | C16: CONTRIBUIÇÃO PREVIDENCIÁRIA SOBRE A RENDA BRUTA | D16: 0 | E16: =ROUND(D16*1.2515,2) -> 0
B18: 3 | C18: TAXA DE RISCO | E18: =SUM(E19:E22) -> 1.08
B19: 3.1 | C19: SEGURO | E19: 0.24
B20: 3.2 | C20: RISCO | E20: 0.6
B21: 3.3 | C21: GARANTIA | E21: 0.24
B23: 4 | C23: DESPESAS FINANCEIRAS | E23: 0.85
B25: 5 | C25: LUCRO | E25: 5.11
C27: BDI - CALCULADO | E27: =ROUND((((1+(E7+E18)/100)*(1+E23/100)*(1+E25/100)/(1-D12/100)-1)*100),2) -> 15
A29: BDI = ((1+((AC+S+R+G)/100))x(1+DF/100)x(1+L/100)/(1-I/100)-1)*100
B31: BDI (CALCULADO): | D31: =ROUND((((1+((E7+E18)/100))*(1+E23/100)*(1+E25/100))/(1-D12/100)-1)*100,2) -> 15 | E31: %
A37: BDI EM CONFORMIDADE COM OS ACÓRDÃOS Nº 2369/2011 e ACÓRDÃO Nº 2.622/2013 - TCU - PLENÁRIO

Sheet CRONOGRAMA
B1: CRONOGRAMA FÍSICO-FINANCEIRO
B2: OBRA: | C2: =ORÇAMENTO!C5 -> PAVIMENTAÇÃO ASFÁLTICA EM CBUQ - VIAS URBANAS DIVERSAS - SEDE E COMUNIDADE RIO DAS PEDRAS (GLAUCILÂNDIA / MG) | F2: VALOR: | G2: =ORÇAMENTO!L42 -> 1999753.71
F3: PRAZO: | G3: 180 DIAS
B5: ITEM | C5: ETAPAS/DESCRIÇAO | D5: FISICO/ FINANCEIRO | E5: TOTAL ETAPAS | F5: MÊS 1 | G5: MÊS 2 | H5: MÊS 3 | I5: MÊS 4 | J5: MÊS 5 | K5: MÊS 6 | L5: TOTAL
A6: A | B6: =VLOOKUP(A6,ORÇAMENTO!$A$10:$L$42,2) -> 1 | C6: =VLOOKUP(A6,ORÇAMENTO!$A$10:$L$42,5) -> SERVIÇOS PRELIMINARES | D6: FISICO | E6: =ROUND(E7/$G$2,4) -> 0.102 | F6: 0.25 | G6: 0.15 | H6: 0.15 | I6: 0.15 | J6: 0.15 | K6: 0.15 | L6: =SUM(F6:K6) -> 1
D7: FINANCEIRO | E7: =ORÇAMENTO!L10 -> 203988.03 | F7: =ROUND($E$7*F6,2) -> 50997.01 | G7: =ROUND($E$7*G6,2) -> 30598.2 | H7: =ROUND($E$7*H6,2) -> 30598.2 | I7: =ROUND($E$7*I6,2) -> 30598.2 | J7: 30598.2 | K7: 30598.2 | L7: =SUM(F7:K7) -> 203988.01
A8: B | B8: =VLOOKUP(A8,ORÇAMENTO!$A$10:$L$42,2) -> 2 | C8: =VLOOKUP(A8,ORÇAMENTO!$A$10:$L$42,5) -> TERRAPLANAGEM E PAVIMENTAÇÃO | D8: FISICO | E8: =ROUND(E9/$G$2,4) -> 0.3426 | F8: 0.1 | G8: 0.2 | H8: 0.2 | I8: 0.2 | J8: 0.2 | K8: 0.1 | L8: =SUM(F8:K8) -> 1
D9: FINANCEIRO | E9: =ORÇAMENTO!L16 -> 685124.18 | F9: =ROUND($E$9*F8,2) -> 68512.42 | G9: =ROUND($E$9*G8,2) -> 137024.84 | H9: =ROUND($E$9*H8,2) -> 137024.84 | I9: =ROUND($E$9*I8,2) -> 137024.84 | J9: 137024.84 | K9: 68512.42 | L9: =SUM(F9:K9) -> 685124.2
A10: C | B10: =VLOOKUP(A10,ORÇAMENTO!$A$10:$L$42,2) -> 3 | C10: =VLOOKUP(A10,ORÇAMENTO!$A$10:$L$42,5) -> TRANSPORTE DE MATERIAIS | D10: FISICO | E10: =ROUND(E11/$G$2,4) -> 0.1067 | F10: 0.25 | G10: 0.5 | H10: 0.25 | L10: =SUM(F10:K10) -> 1
D11: FINANCEIRO | E11: =ORÇAMENTO!L23 -> 213308 | F11: =ROUND($E$11*F10,2) -> 53327 | G11: =ROUND($E$11*G10,2) -> 106654 | H11: =ROUND($E$11*H10,2) -> 53327 | I11: =ROUND($E$11*I10,2) -> 0 | J11: 0 | K11: 0 | L11: =SUM(F11:K11)-0.04 -> 213307.96
A12: E | B12: =VLOOKUP(A12,ORÇAMENTO!$A$10:$L$42,2) -> 4 | C12: =VLOOKUP(A12,ORÇAMENTO!$A$10:$L$42,5) -> DRENAGEM E OBRAS COMPLEMENTARES | D12: FISICO | E12: =ROUND(E13/$G$2,4) -> 0.2116 | F12: 0.1 | G12: 0.2 | H12: 0.2 | I12: 0.2 | J12: 0.2 | K12: 0.1 | L12: =SUM(F12:K12) -> 1
D13: FINANCEIRO | E13: =ORÇAMENTO!L29 -> 423105.85 | F13: =ROUND($E$13*F12,2) -> 42310.59 | G13: =ROUND($E$13*G12,2) -> 84621.17 | H13: =ROUND($E$13*H12,2) -> 84621.17 | I13: =ROUND($E$13*I12,2) -> 84621.17 | J13: 84621.17 | K13: 42310.59 | L13: =SUM(F13:K13)-0.02 -> 423105.84
A14: F | B14: =VLOOKUP(A14,ORÇAMENTO!$A$10:$L$42,2) -> 5 | C14: =VLOOKUP(A14,ORÇAMENTO!$A$10:$L$42,5) -> FORNECIMENTOS - MATERIAL ASFÁLTICO (BDI DIFERENCIADO) | D14: FISICO | E14: =ROUND(E15/$G$2,4) -> 0.2371 | G14: 0.2 | H14: 0.2 | I14: 0.2 | J14: 0.2 | K14: 0.2 | L14: =SUM(F14:K14) -> 1
D15: FINANCEIRO | E15: =ORÇAMENTO!L35 -> 474227.65 | F15: =ROUND($E$15*F14,2) -> 0 | G15: 94845.53 | H15: 94845.53 | I15: 94845.53 | J15: 94845.53 | K15: 94845.53 | L15: =SUM(F15:K15)-0.02 -> 474227.63
B16: TOTAL | D16: FISICO | E16: =SUM(F16:K16) -> 1.000000005 | F16: =F17/$E$17 -> 0.1075867588 | G16: =G17/$E$17 -> 0.2268998116 | H16: =H17/$E$17 -> 0.2002330277 | I16: =I17/$E$17 -> 0.1735662438 | J16: 0.1735662438 | K16: 0.1181479193 | L16: =SUM(F16:K16) -> 1.000000005
D17: FINANCEIRO | E17: =E11+E9+E7+E15+E13 -> 1999753.71 | F17: =F11+F9+F7+F15+F13 -> 215147.02 | G17: =G11+G9+G7+G15+G13 -> 453743.74 | H17: 400416.74 | I17: 347089.74 | J17: 347089.74 | K17: 236266.74 | L17: =SUM(F17:K17)-0.01 -> 1999753.71
B19: OBSERVAÇÕES:

Sheet EAI
C2: MEMÓRIA DE CÁLCULO
G6: TIPOLOGIA DO MATERIAL | I6: Emulsão Asfáltica para Serviço de Imprimação | M6: IMPOSTOS | N6: COFINS | O6: 0.0065 | P6: 0.0065
G7: ÍNDICE DE PAVIMENTAÇÃO DNIT | H7: 2014-07-01 | I7: ÍNDICE INICIAL | J7: 270.237 | N7: PIS | O7: 0.03 | P7: 0.03 | T7: LEGENDA | AC7: As empresas tributadas pelo Lucro Presumido pagam 0,65% de PIS e 3% de COFINS
H8: =H9 -> 2025-02-01 | I8: ÍNDICE FINAL | J8: 587.959 | N8: ICMS | O8: 0.18 | P8: 0.18 | Q8: =1-(O8/1) -> 0.82 | R8: =1-(P8/1) -> 0.82 | S8: =1-(Q8/1) -> 0.18 | T8: ENTRADA DE DADOS | V8: QUANT.ESTIMADA DE EMULSÃO ASFÁLTICA PARA IMPRIMAÇÃO (TON.): | Z8: =ORÇAMENTO!H36 -> 17.5 | AA8: TONELADAS | AC8: As empresas tributadas pelo Lucro Real pagam 1,65% de PIS e 7,60% de COFINS
G9: Data ANP | H9: 2025-02-01
C11: DATA-BASE | D11: PRODUTOS | E11: LOCALIDADES | J11: CUSTO ANP (R$/Kg) | L11: CUSTO ANP | M11: IMPOSTOS DO PRODUTO | N11: CUSTO DO PRODUTO COM IMPOSTOS | O11: DMT's | P11: DMT's FLUVIAL | Q11: CUSTO DO TRANSPORTE RODOVIA PAVIMENTADA | R11: CUSTO DO TRANSPORTE FLUVIAL | S11: CUSTO DO TRANSPORTE TOTAL | T11: ICMS | U11: ATUALIZAÇÃO DO CUSTO DE TRANSPORTE | V11: CUSTO DO TRANSPORTE RODOVIA PAVIMENTADA COM IMPOSTOS E ATUALIZAÇÃO MONETÁRIA | W11: PEDÁGIO | Y11: TOTAL TRANSPORTE | Z11: AQUISIÇÃO DO PRODUTO | AA11: TOTAL GERAL ( TRANSP + AQUISIÇÃO) | AC11: 1 | AD11: 2 | AE11: 3
C12: =H8 -> 2025-02-01 | E12: REFINARIAS | F12: ENDEREÇO | G12: ESTADO | H12: CIDADE | I12: DESTINO | J12: ESTADO | K12: REGIÃO | L12: R$/t | M12: R$/t | N12: R$/t | O12: KM | P12: KM | Q12: R$/t | R12: R$/t | S12: R$/t | T12: R$/t | U12: R$/t | V12: R$/t | W12: CUSTO | X12: R$/t | Y12: R$/t | Z12: R$/t | AA12: R$/t | AC12: TOTAL GERAL ( TRANSP + AQUISIÇÃO) | AD12: TOTAL TRANSPORTE | AE12: AQUISIÇÃO DO PRODUTO
B13: =AA13 -> 4654.756081 | C13: 1 | D13: =I6 -> Emulsão Asfáltica para Serviço de Imprimação | E13: Refinaria Abreu e Lima | F13: Rodovia PE 60, Km 10 - Ipojuca - PE CEP:55590-000 | G13: Pernambuco | H13: IPOJUCA - PE | I13: Montes Claros - MG | J13: - | K13: 2.710401795 | L13: =IF(AND(J13="-",K13="-"),"",IF(AND(J13<>0,K13="-"),J13*1000,IF(AND(J13="-",K13<>0),K13*1000,IF(AND(J13<>0,K13<>0),J13*1000,"")))) -> 2710.401795 | M13: =ROUND(((L13/(1-$O$6-$O$7-$O$8))-L13),2) -> 748.95 | N13: =L13+M13 -> 3459.351795 | O13: 1631 | Q13: =ROUND((26.939+0.253*O13),2) -> 439.58 | S13: =Q13+R13 -> 439.58 | T13: =TRUNC(S13*($O$8/(1-$O$8)),2) -> 96.49 | U13: =TRUNC(IF($J$7="","",(($J$8-$J$7)/$J$7)*(S13+T13)),2) -> 630.26 | V13: =S13+T13+U13 -> 1166.33 | W13: 254.4 | X13: =EVEN($Z$8*2/28)*W13/$Z$8 -> 29.07428571 | Y13: =IF(AND(S13="",T13=""),"",V13+X13) -> 1195.404286 | Z13: =IF(OR(L13="",M13=""),"",L13+M13) -> 3459.351795 | AA13: =IF(OR(Y13="",Z13=""),"",Y13+Z13) -> 4654.756081 | AC13: =AA13 -> 4654.756081 | AD13: =Y13 -> 1195.404286 | AE13: =Z13 -> 3459.351795 | AH13: =IF(OR(G13=$D$50,G13=$D$51,G13=$D$53,G13=$D$59,G13=$D$43,G13=$D$39,G13=$D$35,G13=$D$48,G13=$D$38),"NORDESTE",IF(OR(G13=$D$34,G13=$D$36,G13=$D$37,G13=$D$47,G13=$D$55,G13=$D$56,G13=$D$60),"NORTE",IF(OR(G13=$D$40,G13=$D$42,G13=$D$44,G13=$D$45),"CENTRO-OESTE",IF(OR(G13=$D$58,G13=$D$52,G13=$D$46,G13=$D$41),"SUDESTE",IF(OR(G13=$D$57,G13=$D$49,G13=$D$54),"SUL",""))))) -> NORDESTE
B14: =AA14 -> 4842.626081 | C14: 2 | E14: Refinaria Potiguar Clara Camarão | F14: Rodovia RN 221, KM 25 - Guamaré - RN CEP:59598-000 | G14: Rio Grande do Norte | H14: GUAMARÉ - RN | I14: =I13 -> Montes Claros - MG | J14: - | K14: 2.710401795 | L14: =IF(AND(J14="-",K14=""),"",IF(AND(J14<>0,K14=""),J14*1000,IF(AND(J14="-",K14<>0),K14*1000,IF(AND(J14<>0,K14<>0),J14*1000,"")))) -> 2710.401795 | M14: =ROUND(((L14/(1-$O$6-$O$7-$O$8))-L14),2) -> 748.95 | N14: =L14+M14 -> 3459.351795 | O14: 1923 | Q14: =ROUND((26.939+0.253*O14),2) -> 513.46 | S14: =Q14+R14 -> 513.46 | T14: =TRUNC(S14*($O$8/(1-$O$8)),2) -> 112.71 | U14: =TRUNC(IF($J$7="","",(($J$8-$J$7)/$J$7)*(S14+T14)),2) -> 736.19 | V14: =S14+T14+U14 -> 1362.36 | W14: 183 | X14: =EVEN($Z$8*2/28)*W14/$Z$8 -> 20.91428571 | Y14: =IF(AND(S14="",T14=""),"",V14+X14) -> 1383.274286 | Z14: 3459.351795 | AA14: =IF(OR(Y14="",Z14=""),"",Y14+Z14) -> 4842.626081 | AC14: =AA14 -> 4842.626081 | AD14: =Y14 -> 1383.274286 | AE14: 3459.351795 | AH14: NORDESTE
B15: 4192.506081 | C15: 3 | E15: Refinaria Landulpho Alves (RLAM) | F15: Rodovia BA 523, KM 4 – Mataripe São Francisco do Conde - BA CEP:43900-000 | G15: Bahia | H15: SÃO FRANCISCO DO CONDE - BA | I15: =I14 -> Montes Claros - MG | J15: - | K15: 2.710401795 | L15: 2710.401795 | M15: =ROUND(((L15/(1-$O$6-$O$7-$O$8))-L15),2) -> 748.95 | N15: 3459.351795 | O15: 951 | Q15: =ROUND((26.939+0.253*O15),2) -> 267.54 | S15: 267.54 | T15: 58.72 | U15: 383.58 | V15: 709.84 | W15: 204 | X15: 23.31428571 | Y15: 733.1542857 | Z15: 3459.351795 | AA15: 4192.506081 | AC15: 4192.506081 | AD15: 733.1542857 | AE15: 3459.351795 | AH15: NORDESTE
A16: 2403 | B16: 4604.161938 | C16: 4 | E16: Refinaria Lubrificantes e Derivados do Nordeste (Lubnor) | F16: Av. Leite Barbosa, s/nº - Mucuripe Fortaleza - Ceará CEP:60180-420 | G16: Ceará | H16: FORTALEZA - CE | I16: Montes Claros - MG | J16: 2.501487653 | K16: 2.710401795 | L16: =IF(AND(J16="-",K16=""),"",IF(AND(J16<>0,K16=""),J16*1000,IF(AND(J16="-",K16<>0),K16*1000,IF(AND(J16<>0,K16<>0),J16*1000,"")))) -> 2501.487653 | M16: =ROUND(((L16/(1-$O$6-$O$7-$O$8))-L16),2) -> 691.22 | N16: 3192.707653 | O16: 1965 | Q16: 524.08 | S16: 524.08 | T16: 115.04 | U16: 751.42 | V16: 1390.54 | W16: 183 | X16: 20.91428571 | Y16: 1411.454286 | Z16: 3192.707653 | AA16: 4604.161938 | AC16: 4604.161938 | AD16: 1411.454286 | AE16: 3192.707653 | AH16: NORDESTE
B17: 4280.771632 | C17: 5 | E17: Refinaria Capuava (Recap) | F17: Av. Alberto Soares Sampaio, 2122-A Capuava – Mauá - SP | G17: São Paulo | H17: MAUÁ - SP | I17: Montes Claros - MG | J17: 2.729338775 | K17: 2.760933834 | L17: 2729.338775 | M17: =ROUND(((L17/(1-$O$6-$O$7-$O$8))-L17),2) -> 754.18 | N17: 3483.518775 | O17: 1002 | Q17: 280.45 | S17: 280.45 | T17: 61.56 | U17: 402.1 | V17: 744.11 | W17: 465 | X17: 53.14285714 | Y17: 797.2528571 | Z17: 3483.518775 | AA17: 4280.771632 | AC17: 4280.771632 | AD17: 797.2528571 | AE17: 3483.518775 | AH17: SUDESTE
B18: 4230.486691 | C18: 6 | E18: Refinaria Duque de Caxias (Reduc) | F18: Rodovia Washington Luiz, km 113,7 Campos Elíseos – Duque de Caxias - RJ CEP:25213-005 | G18: Rio de Janeiro | H18: DUQUE DE CAXIAS - RJ | I18: Montes Claros - MG | J18: - | K18: 2.760933834 | L18: 2760.933834 | M18: 762.91 | N18: 3523.843834 | O18: 827 | Q18: 236.17 | S18: 236.17 | T18: 51.84 | U18: 338.61 | V18: 626.62 | W18: 700.2 | X18: 80.02285714 | Y18: 706.6428571 | Z18: 3523.843834 | AA18: 4230.486691 | AC18: 4230.486691 | AD18: 706.6428571 | AE18: 3523.843834 | AH18: SUDESTE
B19: 5285.328508 | C19: 7 | E19: Refinaria Alberto Pasqualini (Refap) | F19: Avenida Getúlio Vargas, 11001 - Bairro Brigadeira Canoas - RS - Brasil CEP:92420-221 | G19: Rio Grande do Sul | H19: CANOAS - RS | I19: Montes Claros - MG | J19: 2.868824222 | K19: 2.854435567 | L19: 2868.824222 | M19: 792.73 | N19: 3661.554222 | O19: 2134 | Q19: 566.84 | S19: 566.84 | T19: 124.42 | U19: 812.72 | V19: 1503.98 | W19: 1048.2 | X19: 119.7942857 | Y19: 1623.774286 | Z19: 3661.554222 | AA19: 5285.328508 | AC19: 5285.328508 | AD19: 1623.774286 | AE19: 3661.554222 | AH19: SUL
B20: 4806.253459 | C20: 8 | E20: Unidade de Industrialização do Xisto (SIX) | F20: Rodovia do Xisto, BR 476, km 153 São Mateus do Sul – PR CEP 83900-000 | G20: Paraná | H20: SÃO MATEUS DO SUL - PR | I20: Montes Claros - MG | J20: 2.843592031 | K20: 2.854435567 | L20: 2843.592031 | M20: 785.75 | N20: 3629.342031 | O20: 1539 | Q20: 416.31 | S20: 416.31 | T20: 91.38 | U20: 596.89 | V20: 1104.58 | W20: 632.9 | X20: 72.33142857 | Y20: 1176.911429 | Z20: 3629.342031 | AA20: 4806.253459 | AC20: 4806.253459 | AD20: 1176.911429 | AE20: 3629.342031 | AH20: SUL
B21: 3930.141345 | C21: 9 | E21: Refinaria Gabriel Passos (Regap) | F21: Av. Refinaria Gabriel Passos, 690 Distrito Industrial Paulo Camilo Sul Betim - MG CEP:32669-205 | G21: Minas Gerais | H21: BETIM - MG | I21: Montes Claros - MG | J21: 2.76742706 | K21: 2.760933834 | L21: 2767.42706 | M21: 764.71 | N21: 3532.13706 | O21: 431 | Q21: 135.98 | S21: 135.98 | T21: 29.84 | U21: 194.95 | V21: 360.77 | W21: 325.8 | X21: 37.23428571 | Y21: 398.0042857 | Z21: 3532.13706 | AA21: =IF(OR(Y21="",Z21=""),"",Y21+Z21) -> 3930.141345 | AC21: 3930.141345 | AD21: 398.0042857 | AE21: 3532.13706 | AH21: SUDESTE
B22: 4752.284888 | C22: 10 | E22: Refinaria Presidente Getúlio Vargas (Repar) | F22: Rodovia do Xisto, BR 476, km 16 Araucária - PR CEP:83707-440 | G22: Paraná | H22: ARAUCÁRIA - PR | I22: Montes Claros - MG | J22: 2.843592031 | K22: 2.854435567 | L22: 2843.592031 | M22: 785.75 | N22: 3629.342031 | O22: 1440 | Q22: 391.26 | S22: 391.26 | T22: 85.88 | U22: 560.98 | V22: 1038.12 | W22: 742.2 | X22: 84.82285714 | Y22: 1122.942857 | Z22: 3629.342031 | AA22: 4752.284888 | AC22: 4752.284888 | AD22: 1122.942857 | AE22: 3629.342031 | AH22: SUL
B23: 4306.921632 | C23: 11 | E23: Refinaria Presidente Bernardes (RPBC) | F23: Av. 9 de abril, 777 - Jardim das Indústrias Cubatão - SP CEP:11505-000 | G23: São Paulo | H23: CUBATÃO - SP | I23: Montes Claros - MG | J23: 2.729338775 | K23: 2.760933834 | L23: 2729.338775 | M23: 754.18 | N23: 3483.518775 | O23: 1041 | Q23: 290.31 | S23: 290.31 | T23: 63.72 | U23: 416.23 | V23: 770.26 | W23: 465 | X23: 53.14285714 | Y23: 823.4028571 | Z23: 3483.518775 | AA23: 4306.921632 | AC23: 4306.921632 | AD23: 823.4028571 | AE23: 3483.518775 | AH23: SUDESTE
B24: 4294.964489 | C24: 12 | E24: Refinaria de Paulínia (Replan) | F24: Rodovia SP 332 - Km. 130 Bonfim - Paulínia – SP CEP:13140-000 | G24: São Paulo | H24: PAULÍNIA - SP | I24: Montes Claros - MG | J24: 2.729338775 | K24: 2.760933834 | L24: 2729.338775 | M24: 754.18 | N24: 3483.518775 | O24: 1021 | Q24: 285.25 | S24: 285.25 | T24: 62.61 | U24: 408.98 | V24: 756.84 | W24: 477.8 | X24: 54.60571429 | Y24: 811.4457143 | Z24: 3483.518775 | AA24: 4294.964489 | AC24: 4294.964489 | AD24: 811.4457143 | AE24: 3483.518775 | AH24: SUDESTE
B25: 4254.52306 | C25: 13 | E25: Refinaria Henrique Lage (Revap) | F25: Rodovia Presidente Dutra, KM 143, S/N Bairro Jardim Diamante - São José dos Campos – SP CEP:12223-900 | G25: São Paulo | H25: SÃO JOSÉ DOS CAMPOS - SP | I25: Montes Claros - MG | J25: 2.729338775 | K25: 2.760933834 | L25: 2729.338775 | M25: 754.18 | N25: 3483.518775 | O25: 953 | Q25: 268.05 | S25: 268.05 | T25: 58.84 | U25: 384.32 | V25: 711.21 | W25: 523.2 | X25: 59.79428571 | Y25: 771.0042857 | Z25: 3483.518775 | AA25: 4254.52306 | AC25: 4254.52306 | AD25: 771.0042857 | AE25: 3483.518775 | AH25: SUDESTE
D34: Acre
D35: Alagoas
D36: Amapá
D37: Amazonas
D38: Bahia
D39: Ceará
D40: Distrito Federal
D41: Espírito Santo
D42: Goiás
D43: Maranhão
D44: Mato Grosso
D45: Mato Grosso do Sul
D46: Minas Gerais
D47: Pará
D48: Paraíba
D49: Paraná
D50: Pernambuco
D51: Piauí
D52: Rio de Janeiro
D53: Rio Grande do Norte
D54: Rio Grande do Sul
D55: Rondônia
D56: Roraima
D57: Santa Catarina
D58: São Paulo
D59: Sergipe
D60: Tocantins
D64: ASFALTOS DILUÍDOS CM-30
D65: ASFALTOS DILUÍDOS CM-70
D66: ASFALTOS DILUÍDOS CR-250
D67: ASFALTOS DILUÍDOS CR-70
D68: CAP MODIFICADO POR BORRACHA DE PNEU AB22
D69: CAP MODIFICADO POR BORRACHA DE PNEU AB8
D70: CAP MODIFICADO POR POLÍMERO 55-75-E
D71: CAP MODIFICADO POR POLÍMERO 60-85-E
D72: CAP MODIFICADO POR POLÍMERO 65-90-E
D73: CIMENTOS ASFÁLTICOS CAP-150-200
D74: CIMENTOS ASFÁLTICOS CAP-30-45
D75: CIMENTOS ASFÁLTICOS CAP-50-70
D76: CIMENTOS ASFÁLTICOS CAP-85-100
D77: EMULSÃO ASFÁLTICA CATIÔNICA DE RUPTURA CONTROLADA PARA SERVIÇO DE LAMA ASFÁLTICA
D78: EMULSÃO ASFÁLTICA DE RUPTURA LENTA CATIÔNICA PARA SERVIÇO DE LAMA ASFÁLTICA
D79: EMULSÃO ASFÁLTICA DE RUPTURA LENTA DE CARGA NEUTRA PARA SERVIÇO DE LAMA ASFÁLTICA
D80: EMULSÃO ASFÁLTICA PARA SERVIÇO DE IMPRIMAÇÃO
D81: EMULSÕES ASF. MOD. POR POLÍMEROS RC1C-E
D82: EMULSÕES ASF. MOD. POR POLÍMEROS RL1C-E
D83: EMULSÕES ASF. MOD. POR POLÍMEROS RM1C-E
D84: EMULSÕES ASF. MOD. POR POLÍMEROS RR1C-E
D85: EMULSÕES ASF. MOD. POR POLÍMEROS RR2C-E
D86: EMULSÕES ASFÁLTICAS RL-1C
D87: EMULSÕES ASFÁLTICAS RM-1C
D88: EMULSÕES ASFÁLTICAS RM-2C
D89: EMULSÕES ASFÁLTICAS RR-1C
D90: EMULSÕES ASFÁLTICAS RR-2C

Sheet RR-1C
C2: MEMÓRIA DE CÁLCULO
G6: TIPOLOGIA DO MATERIAL | I6: EMULSÕES ASFÁLTICAS RR-1C | M6: IMPOSTOS | N6: COFINS | O6: 0.0065 | P6: 0.0065
G7: ÍNDICE DE PAVIMENTAÇÃO DNIT | H7: 2014-07-01 | I7: ÍNDICE INICIAL | J7: 270.237 | N7: PIS | O7: 0.03 | P7: 0.03 | T7: LEGENDA | AC7: As empresas tributadas pelo Lucro Presumido pagam 0,65% de PIS e 3% de COFINS
H8: 2023-10-01 | I8: ÍNDICE FINAL | J8: =EAI!J8 -> 587.959 | N8: ICMS | O8: 0.18 | P8: 0.18 | Q8: =1-(O8/1) -> 0.82 | R8: =1-(P8/1) -> 0.82 | S8: =1-(Q8/1) -> 0.18 | T8: ENTRADA DE DADOS | V8: QUANT.ESTIMADA DE RR-1C (TON.): | Z8: =ORÇAMENTO!H38 -> 5.295 | AA8: TONELADAS | AC8: As empresas tributadas pelo Lucro Real pagam 1,65% de PIS e 7,60% de COFINS
G9: Data ANP | H9: =EAI!H9 -> 2025-02-01
C11: DATA-BASE | D11: PRODUTOS | E11: LOCALIDADES | J11: CUSTO ANP (R$/Kg) | L11: CUSTO ANP | M11: IMPOSTOS DO PRODUTO | N11: CUSTO DO PRODUTO COM IMPOSTOS | O11: DMT's | P11: DMT'S FLUVIAL | Q11: CUSTO DO TRANSPORTE RODOVIA PAVIMENTADA | R11: CUSTO DO TRANSPORTE FLUVIAL | S11: CUSTO DO TRANSPORTE TOTAL | T11: ICMS | U11: ATUALIZAÇÃO DO CUSTO DE TRANSPORTE | V11: CUSTO DO TRANSPORTE RODOVIA PAVIMENTADA COM IMPOSTOS E ATUALIZAÇÃO MONETÁRIA | W11: PEDÁGIO | Y11: TOTAL TRANSPORTE | Z11: AQUISIÇÃO DO PRODUTO | AA11: TOTAL GERAL ( TRANSP + AQUISIÇÃO) | AC11: 1 | AD11: 2 | AE11: 3
C12: =H8 -> 2023-10-01 | E12: REFINARIAS | F12: ENDEREÇO | G12: ESTADO | H12: CIDADE | I12: DESTINO | J12: ESTADO | K12: REGIÃO | L12: R$/t | M12: R$/t | N12: R$/t | O12: KM | P12: KM | Q12: R$/t | R12: R$/t | S12: R$/t | T12: R$/t | U12: R$/t | V12: R$/t | W12: CUSTO | X12: R$/t | Y12: R$/t | Z12: R$/t | AA12: R$/t | AC12: TOTAL GERAL ( TRANSP + AQUISIÇÃO) | AD12: TOTAL TRANSPORTE | AE12: AQUISIÇÃO DO PRODUTO
B13: =AA13 -> 4514.906255 | C13: 1 | D13: =I6 -> EMULSÕES ASFÁLTICAS RR-1C | E13: 'CENTRO OESTE ASFALTOS LTDA. | F13: SETOR DE INFLAMÁVEIS, S/N TRECHO 02 - LOTE 1.100 - GUARÁ - CEP:71225-000 | G13: Distrito Federal | H13: BRASÍLIA - DF | I13: =EAI!I13 -> Montes Claros - MG | J13: - | K13: 3.069585773 | L13: =IF(AND(J13="-",K13="-"),"",IF(AND(J13<>0,K13="-"),J13*1000,IF(AND(J13="-",K13<>0),K13*1000,IF(AND(J13<>0,K13<>0),J13*1000,"")))) -> 3069.585773 | M13: =ROUND(((L13/(1-$O$6-$O$7-$O$8))-L13),2) -> 848.2 | N13: =L13+M13 -> 3917.785773 | O13: 698 | Q13: =ROUND((26.939+0.253*O13),2) -> 203.53 | S13: =Q13+R13 -> 203.53 | T13: =TRUNC(S13*($O$8/(1-$O$8)),2) -> 44.67 | U13: =TRUNC(IF($J$7="","",(($J$8-$J$7)/$J$7)*(S13+T13)),2) -> 291.81 | V13: =S13+T13+U13 -> 540.01 | W13: 151.2 | X13: =EVEN($Z$8*2/28)*W13/$Z$8 -> 57.11048159 | Y13: =IF(AND(Q13="",T13=""),"",V13+X13) -> 597.1204816 | Z13: =IF(OR(L13="",M13=""),"",L13+M13) -> 3917.785773 | AA13: =IF(OR(Y13="",Z13=""),"",Y13+Z13) -> 4514.906255 | AC13: =AA13 -> 4514.906255 | AD13: =Y13 -> 597.1204816 | AE13: =Z13 -> 3917.785773 | AH13: =IF(OR(G13=$D$52,G13=$D$53,G13=$D$55,G13=$D$61,G13=$D$45,G13=$D$41,G13=$D$37,G13=$D$50,G13=$D$40),"NORDESTE",IF(OR(G13=$D$36,G13=$D$38,G13=$D$39,G13=$D$49,G13=$D$57,G13=$D$58,G13=$D$62),"NORTE",IF(OR(G13=$D$42,G13=$D$44,G13=$D$46,G13=$D$47),"CENTRO-OESTE",IF(OR(G13=$D$60,G13=$D$54,G13=$D$48,G13=$D$43),"SUDESTE",IF(OR(G13=$D$59,G13=$D$51,G13=$D$56),"SUL",""))))) -> CENTRO-OESTE
B14: =AA14 -> 4435.922916 | C14: 2 | E14: STRATURA ASFALTOS S/A | F14: AVENIDA PRESIDENTE WILSON, 08 - JUNDIAÍ - CEP:75115-100 | G14: Goiás | H14: ANÁPOLIS - GO | I14: =I13 -> Montes Claros - MG | J14: 2.943001896 | K14: 3.069585773 | L14: =IF(AND(J14="-",K14="-"),"",IF(AND(J14<>0,K14="-"),J14*1000,IF(AND(J14="-",K14<>0),K14*1000,IF(AND(J14<>0,K14<>0),J14*1000,"")))) -> 2943.001896 | M14: =ROUND(((L14/(1-$O$6-$O$7-$O$8))-L14),2) -> 813.22 | N14: =L14+M14 -> 3756.221896 | O14: 796 | Q14: =ROUND((26.939+0.253*O14),2) -> 228.33 | S14: =Q14+R14 -> 228.33 | T14: =TRUNC(S14*($O$8/(1-$O$8)),2) -> 50.12 | U14: =TRUNC(IF($J$7="","",(($J$8-$J$7)/$J$7)*(S14+T14)),2) -> 327.37 | V14: =S14+T14+U14 -> 605.82 | W14: 195.6 | X14: =EVEN($Z$8*2/28)*W14/$Z$8 -> 73.88101983 | Y14: 679.7010198 | Z14: 3756.221896 | AA14: =IF(OR(Y14="",Z14=""),"",Y14+Z14) -> 4435.922916 | AC14: =AA14 -> 4435.922916 | AD14: =Y14 -> 679.7010198 | AE14: 3756.221896 | AH14: CENTRO-OESTE
B15: 4455.461584 | C15: 3 | E15: DISTRIBUIDORA BRASILEIRA DE ASFALTO SA - DISBRAL | F15: VIA PRIMARIA 8, S/N QD-18, MODS. 24/47 - DAIAG - CEP:74980-970 | G15: Goiás | H15: APARECIDA DE GOIANIA - GO | I15: =I14 -> Montes Claros - MG | J15: 2.943001896 | K15: 3.069585773 | L15: 2943.001896 | M15: 813.22 | N15: 3756.221896 | O15: 843 | Q15: 240.22 | S15: 240.22 | T15: 52.73 | U15: 344.42 | V15: 637.37 | W15: 163.8 | X15: 61.86968839 | Y15: 699.2396884 | Z15: 3756.221896 | AA15: 4455.461584 | AC15: 4455.461584 | AD15: 699.2396884 | AE15: 3756.221896 | AH15: CENTRO-OESTE
A16: 2403 | B16: 4484.991584 | C16: 4 | E16: INDÚSTRIA NACIONAL DE ASFALTOS LTDA. | F16: VIA PRIMEIRA E SEGUNDA 3, S/N.º LOTES 01 A 10 - DISTRITO AGROINDUSTRIAL - CEP:75370-000 | G16: Goiás | H16: GOIANIRA - GO | I16: Montes Claros - MG | J16: 2.943001896 | K16: 3.069585773 | L16: 2943.001896 | M16: 813.22 | N16: 3756.221896 | O16: 887 | Q16: 251.35 | S16: 251.35 | T16: 55.17 | U16: 360.38 | V16: 666.9 | W16: 163.8 | X16: 61.86968839 | Y16: 728.7696884 | Z16: 3756.221896 | AA16: 4484.991584 | AC16: 4484.991584 | AD16: 728.7696884 | AE16: 3756.221896 | AH16: CENTRO-OESTE
B17: 4034.736352 | C17: 5 | E17: STRATURA ASFALTOS S/A | F17: RUA VICTOR RODRIGUES RESENDE, 333 - DISTRITO IND. DE UBERLÂNDIA - CEP:38405-440 | G17: Minas Gerais | H17: UBERLANDIA - MG | I17: Montes Claros - MG | J17: 2.727202613 | K17: 2.730001372 | L17: 2727.202613 | M17: 753.59 | N17: 3480.792613 | O17: 633 | Q17: 187.09 | S17: 187.09 | T17: 41.06 | U17: 268.23 | V17: 496.38 | W17: 152.4 | X17: 57.56373938 | Y17: 553.9437394 | Z17: 3480.792613 | AA17: 4034.736352 | AC17: 4034.736352 | AD17: 553.9437394 | AE17: 3480.792613 | AH17: SUDESTE
B18: 5931.850079 | C18: 6 | E18: ARAPETRO DISTRIBUIDORA DE PETRÓLEO LTDA. | F18: RUA 04, S/N° LOTES 17 A 20. - DISTRITO INDUSTRIAL 1/8 - CEP:78600-000 | G18: Mato Grosso | H18: BARRA DO GARCAS - MT | I18: =I17 -> Montes Claros - MG | J18: 3.90048906 | K18: 3.069585773 | L18: =IF(AND(J18="-",K18="-"),"",IF(AND(J18<>0,K18="-"),J18*1000,IF(AND(J18="-",K18<>0),K18*1000,IF(AND(J18<>0,K18<>0),J18*1000,"")))) -> 3900.48906 | M18: =ROUND(((L18/(1-$O$6-$O$7-$O$8))-L18),2) -> 1077.8 | N18: 4978.28906 | O18: 1204 | Q18: 331.55 | S18: 331.55 | T18: 72.77 | U18: 475.36 | V18: 879.68 | W18: 195.6 | X18: 73.88101983 | Y18: 953.5610198 | Z18: 4978.28906 | AA18: 5931.850079 | AH18: CENTRO-OESTE
B19: 3970.022103 | C19: 7 | E19: DISTRIBUIDORA BRASILEIRA DE ASFALTO SA - DISBRAL | F19: SÃO JUDAS TADEU, 288 - DISTRITO INDUSTRIAL - CEP:32450-000 | G19: Minas Gerais | H19: SARZEDO - MG | I19: Montes Claros - MG | J19: 2.727202613 | K19: 2.730001372 | L19: 2727.202613 | M19: 753.59 | N19: 3480.792613 | O19: 439 | Q19: 138.01 | S19: 138.01 | T19: 30.29 | U19: 197.87 | V19: 366.17 | W19: 325.8 | X19: 123.0594901 | Y19: 489.2294901 | Z19: 3480.792613 | AA19: 3970.022103 | AH19: SUDESTE
B20: 4676.327663 | C20: 8 | E20: 'INDÚSTRIA NACIONAL DE ASFALTOS LTDA. | F20: INDÚSTRIA NACIONAL DE ASFALTOS LTDA - CEP:77053-080 | G20: Tocantins | H20: PALMAS - TO | I20: Montes Claros - MG | J20: - | K20: 2.928897663 | L20: 2928.897663 | M20: 809.33 | N20: 3738.227663 | O20: 1291 | Q20: 353.56 | S20: 353.56 | T20: 77.61 | U20: 506.93 | V20: 938.1 | W20: 0 | X20: 0 | Y20: 938.1 | Z20: 3738.227663 | AA20: 4676.327663 | AH20: NORTE
B21: 4488.601679 | C21: 9 | E21: 'NTA - NOVAS TÉCNICAS DE ASFALTOS S/A | F21: RUA SOFIA ATAURI FADIN, 150 SALA A - B. SANTA TEREZINHA - CEP:13140-000 | G21: São Paulo | H21: PAULINIA - SP | I21: Montes Claros - MG | J21: 2.755585476 | K21: 2.730001372 | L21: 2755.585476 | M21: =ROUND(((L21/(1-$O$6-$O$7-$O$8))-L21),2) -> 761.43 | N21: 3517.015476 | O21: 1009 | Q21: 282.22 | S21: 282.22 | T21: 61.95 | U21: 404.64 | V21: 748.81 | W21: 589.8 | X21: 222.776204 | Y21: 971.586204 | Z21: 3517.015476 | AA21: 4488.601679 | AC21: 4488.601679 | AD21: 971.586204 | AE21: 3517.015476 | AH21: SUDESTE
B22: 4414.740631 | C22: 10 | E22: COMPANHIA BRASILEIRA DE ASFALTOS DA AMAZÔNIA - IMPORTAÇÃO E EXPORTAÇÃO | F22: Avenida Doutor Olindo Dártora 2451, Galpão 02, Morro Grande - CEP:07726-555 | G22: São Paulo | H22: CAIEIRAS - SP | I22: Montes Claros - MG | J22: 2.755585476 | K22: 2.730001372 | L22: 2755.585476 | M22: =ROUND(((L22/(1-$O$6-$O$7-$O$8))-L22),2) -> 761.43 | N22: 3517.015476 | O22: 979 | Q22: 274.63 | S22: 274.63 | T22: 60.28 | U22: 393.75 | V22: 728.66 | W22: 447.6 | X22: 169.0651558 | Y22: 897.7251558 | Z22: 3517.015476 | AA22: 4414.740631 | AH22: SUDESTE
B23: 4983.249513 | C23: 11 | E23: BETUNEL INDÚSTRIA E COMÉRCIO LTDA. | F23: R 16 , 82, Vila Nova Campo Grande - CEP:79.103-834 | G23: Mato Grosso do Sul | H23: CAMPO GRANDE - MS | I23: Montes Claros - MG | J23: - | K23: 3.069585773 | L23: 3069.585773 | M23: =ROUND(((L23/(1-$O$6-$O$7-$O$8))-L23),2) -> 848.2 | N23: 3917.785773 | O23: 1395 | Q23: 379.87 | S23: 379.87 | T23: 83.38 | U23: 544.65 | V23: 1007.9 | W23: 152.4 | X23: 57.56373938 | Y23: 1065.463739 | Z23: 3917.785773 | AA23: 4983.249513 | AH23: CENTRO-OESTE
B24: 6366.310703 | C24: 12 | E24: BETUNEL INDÚSTRIA E COMÉRCIO LTDA. | F24: RUA N ESQUINA COM RUA X, S/N QD. IND. 7 L 01/08 - DIST. IND. - CEP:78015-285 | G24: Mato Grosso | H24: CUIABA - MT | I24: =I23 -> Montes Claros - MG | J24: 3.90048906 | K24: 3.069585773 | L24: 3900.48906 | M24: 1077.8 | N24: 4978.28906 | O24: 1678 | Q24: 451.47 | S24: 451.47 | T24: 99.1 | U24: 647.31 | V24: 1197.88 | W24: 503.4 | X24: 190.1416431 | Y24: 1388.021643 | Z24: 4978.28906 | AA24: 6366.310703 | AH24: CENTRO-OESTE
B25: 4413.075872 | C25: 13 | E25: VIAPOL LTDA. | F25: VITO ARDITO, 6401 KM 118,5 - JARDIM CAMPO GRANDE - CEP:12282-535 | G25: São Paulo | H25: CACAPAVA - SP | I25: =I24 -> Montes Claros - MG | J25: 2.755585476 | K25: 2.730001372 | L25: 2755.585476 | M25: 761.43 | N25: 3517.015476 | O25: 934 | Q25: 263.24 | S25: 263.24 | T25: 57.78 | U25: 377.42 | V25: 698.44 | W25: 523.2 | X25: 197.6203966 | Y25: 896.0603966 | Z25: 3517.015476 | AA25: 4413.075872 | AC25: 4413.075872 | AD25: 896.0603966 | AE25: 3517.015476 | AH25: SUDESTE
B26: 4376.817292 | C26: 14 | E26: STRATURA ASFALTOS S/A | F26: RUA LUIS DE CAMÕES, 26 - CAMPOS ELÍSEOS - CEP:25225-030 | G26: Rio de Janeiro | H26: DUQUE DE CAXIAS - RJ | I26: Montes Claros - MG | J26: - | K26: 2.730001372 | L26: 2730.001372 | M26: 754.37 | N26: 3484.371372 | O26: 829 | Q26: 236.68 | S26: 236.68 | T26: 51.95 | U26: 339.34 | V26: 627.97 | W26: 700.2 | X26: 264.4759207 | Y26: 892.4459207 | Z26: 3484.371372 | AA26: 4376.817292 | AC26: 4376.817292 | AD26: 892.4459207 | AE26: 3484.371372 | AH26: SUDESTE
B27: 4764.771834 | C27: 15 | E27: CASA DO ASFALTO DISTRIBUIDORA, INDÚSTRIA E COMÉRCIO DE ASFALTO LTDA. | F27: BR 376, PARQUE INDUSTRIAL, S/N LOTE 6/7/7-A-3-1 - GL.PATR.MARIALVA - CEP:86990-000 | G27: Paraná | H27: MARIALVA - PR | I27: =I26 -> Montes Claros - MG | J27: 2.7953997 | K27: 2.802789846 | L27: 2795.3997 | M27: 772.44 | N27: 3567.8397 | O27: 1358 | Q27: 370.51 | S27: 370.51 | T27: 81.33 | U27: 531.23 | V27: 983.07 | W27: 566.2 | X27: 213.8621341 | Y27: 1196.932134 | Z27: 3567.8397 | AA27: 4764.771834 | AC27: 4764.771834 | AD27: 1196.932134 | AE27: 3567.8397 | AH27: SUL
D36: Acre
D37: Alagoas
D38: Amapá
D39: Amazonas
D40: Bahia
D41: Ceará
D42: Distrito Federal
D43: Espírito Santo
D44: Goiás
D45: Maranhão
D46: Mato Grosso
D47: Mato Grosso do Sul
D48: Minas Gerais
D49: Pará
D50: Paraíba
D51: Paraná
D52: Pernambuco
D53: Piauí
D54: Rio de Janeiro
D55: Rio Grande do Norte
D56: Rio Grande do Sul
D57: Rondônia
D58: Roraima
D59: Santa Catarina
D60: São Paulo
D61: Sergipe
D62: Tocantins
D66: ASFALTOS DILUÍDOS CM-30
D67: ASFALTOS DILUÍDOS CM-70
D68: ASFALTOS DILUÍDOS CR-250
D69: ASFALTOS DILUÍDOS CR-70
D70: CAP MODIFICADO POR BORRACHA DE PNEU AB22
D71: CAP MODIFICADO POR BORRACHA DE PNEU AB8
D72: CAP MODIFICADO POR POLÍMERO 55-75-E
D73: CAP MODIFICADO POR POLÍMERO 60-85-E
D74: CAP MODIFICADO POR POLÍMERO 65-90-E
D75: CIMENTOS ASFÁLTICOS CAP-150-200
D76: CIMENTOS ASFÁLTICOS CAP-30-45
D77: CIMENTOS ASFÁLTICOS CAP-50-70
D78: CIMENTOS ASFÁLTICOS CAP-85-100
D79: EMULSÃO ASFÁLTICA CATIÔNICA DE RUPTURA CONTROLADA PARA SERVIÇO DE LAMA ASFÁLTICA
D80: EMULSÃO ASFÁLTICA DE RUPTURA LENTA CATIÔNICA PARA SERVIÇO DE LAMA ASFÁLTICA
D81: EMULSÃO ASFÁLTICA DE RUPTURA LENTA DE CARGA NEUTRA PARA SERVIÇO DE LAMA ASFÁLTICA
D82: EMULSÃO ASFÁLTICA PARA SERVIÇO DE IMPRIMAÇÃO
D83: EMULSÕES ASF. MOD. POR POLÍMEROS RC1C-E
D84: EMULSÕES ASF. MOD. POR POLÍMEROS RL1C-E
D85: EMULSÕES ASF. MOD. POR POLÍMEROS RM1C-E
D86: EMULSÕES ASF. MOD. POR POLÍMEROS RR1C-E
D87: EMULSÕES ASF. MOD. POR POLÍMEROS RR2C-E
D88: EMULSÕES ASFÁLTICAS RL-1C
D89: EMULSÕES ASFÁLTICAS RM-1C
D90: EMULSÕES ASFÁLTICAS RM-2C
D91: EMULSÕES ASFÁLTICAS RR-1C
D92: EMULSÕES ASFÁLTICAS RR-2C

Sheet CAP
C2: MEMÓRIA DE CÁLCULO
G6: TIPOLOGIA DO MATERIAL | I6: CIMENTOS ASFÁLTICOS CAP-50-70 | M6: IMPOSTOS | N6: COFINS | O6: 0.0065 | P6: 0.0065
G7: ÍNDICE DE PAVIMENTAÇÃO DNIT | H7: 2014-07-01 | I7: ÍNDICE INICIAL | J7: 270.237 | N7: PIS | O7: 0.03 | P7: 0.03 | T7: LEGENDA | AC7: As empresas tributadas pelo Lucro Presumido pagam 0,65% de PIS e 3% de COFINS
H8: 2023-10-01 | I8: ÍNDICE FINAL | J8: =EAI!J8 -> 587.959 | N8: ICMS | O8: 0.18 | P8: 0.18 | Q8: =1-(O8/1) -> 0.82 | R8: =1-(P8/1) -> 0.82 | S8: =1-(Q8/1) -> 0.18 | T8: ENTRADA DE DADOS | Z8: 169.96 | AC8: As empresas tributadas pelo Lucro Real pagam 1,65% de PIS e 7,60% de COFINS
G9: Data ANP | H9: =EAI!H9 -> 2025-02-01
C11: DATA-BASE | D11: PRODUTOS | E11: LOCALIDADES | J11: CUSTO ANP (R$/Kg) | L11: CUSTO ANP | M11: IMPOSTOS DO PRODUTO | N11: CUSTO DO PRODUTO COM IMPOSTOS | O11: DMT's | P11: DMT's FLUVIAL | Q11: CUSTO DO TRANSPORTE RODOVIA PAVIMENTADA | R11: CUSTO DO TRANSPORTE FLUVIAL | S11: CUSTO DO TRANSPORTE TOTAL | T11: ICMS | U11: ATUALIZAÇÃO DO CUSTO DE TRANSPORTE | V11: CUSTO DO TRANSPORTE RODOVIA PAVIMENTADA COM IMPOSTOS E ATUALIZAÇÃO MONETÁRIA | W11: PEDÁGIO | Y11: TOTAL TRANSPORTE | Z11: AQUISIÇÃO DO PRODUTO | AA11: TOTAL GERAL ( TRANSP + AQUISIÇÃO) | AC11: 1 | AD11: 2 | AE11: 3
C12: =H8 -> 2023-10-01 | E12: REFINARIAS | F12: ENDEREÇO | G12: ESTADO | H12: CIDADE | I12: DESTINO | J12: ESTADO | K12: REGIÃO | L12: R$/t | M12: R$/t | N12: R$/t | O12: KM | P12: KM | Q12: R$/t | R12: R$/t | S12: R$/t | T12: R$/t | U12: R$/t | V12: R$/t | W12: CUSTO | X12: R$/t | Y12: R$/t | Z12: R$/t | AA12: R$/t | AC12: TOTAL GERAL ( TRANSP + AQUISIÇÃO) | AD12: TOTAL TRANSPORTE | AE12: AQUISIÇÃO DO PRODUTO
B13: =AA13 -> 6373.41812 | C13: 1 | D13: =I6 -> CIMENTOS ASFÁLTICOS CAP-50-70 | E13: Refinaria Abreu e Lima | F13: Rodovia PE 60, Km 10 - Ipojuca - PE CEP:55590-000 | G13: Pernambuco | H13: IPOJUCA - PE | I13: =EAI!I13 -> Montes Claros - MG | J13: - | K13: 4.063332601 | L13: =IF(AND(J13="-",K13="-"),"",IF(AND(J13<>0,K13="-"),J13*1000,IF(AND(J13="-",K13<>0),K13*1000,IF(AND(J13<>0,K13<>0),J13*1000,"")))) -> 4063.332601 | M13: =ROUND(((L13/(1-$O$6-$O$7-$O$8))-L13),2) -> 1122.8 | N13: =L13+M13 -> 5186.132601 | O13: 1631 | Q13: =ROUND((26.939+0.253*O13),2) -> 439.58 | S13: =Q13+R13 -> 439.58 | T13: =TRUNC(S13*($O$8/(1-$O$8)),2) -> 96.49 | U13: =TRUNC(IF($J$7="","",(($J$8-$J$7)/$J$7)*(S13+T13)),2) -> 630.26 | V13: =S13+T13+U13 -> 1166.33 | W13: 254.4 | X13: =EVEN($Z$8*2/28)*W13/$Z$8 -> 20.95551895 | Y13: =IF(AND(Q13="",T13=""),"",V13+X13) -> 1187.285519 | Z13: =IF(OR(L13="",M13=""),"",L13+M13) -> 5186.132601 | AA13: =IF(OR(Y13="",Z13=""),"",Y13+Z13) -> 6373.41812 | AC13: =AA13 -> 6373.41812 | AD13: =Y13 -> 1187.285519 | AE13: =Z13 -> 5186.132601 | AH13: =IF(OR(G13=$D$51,G13=$D$52,G13=$D$54,G13=$D$60,G13=$D$44,G13=$D$40,G13=$D$36,G13=$D$49,G13=$D$39),"NORDESTE",IF(OR(G13=$D$35,G13=$D$37,G13=$D$38,G13=$D$48,G13=$D$56,G13=$D$57,G13=$D$61),"NORTE",IF(OR(G13=$D$41,G13=$D$43,G13=$D$45,G13=$D$46),"CENTRO-OESTE",IF(OR(G13=$D$59,G13=$D$53,G13=$D$47,G13=$D$42),"SUDESTE",IF(OR(G13=$D$58,G13=$D$50,G13=$D$55),"SUL",""))))) -> NORDESTE
B14: =AA14 -> 6563.566736 | C14: 3 | E14: Refinaria Potiguar Clara Camarão | F14: Rodovia RN 221, KM 25 - Guamaré - RN CEP:59598-000 | G14: Rio Grande do Norte | H14: GUAMARÉ - RN | I14: =I13 -> Montes Claros - MG | J14: - | K14: 4.063332601 | L14: 4063.332601 | M14: =ROUND(((L14/(1-$O$6-$O$7-$O$8))-L14),2) -> 1122.8 | N14: =L14+M14 -> 5186.132601 | O14: 1923 | Q14: =ROUND((26.939+0.253*O14),2) -> 513.46 | S14: =Q14+R14 -> 513.46 | T14: =TRUNC(S14*($O$8/(1-$O$8)),2) -> 112.71 | U14: =TRUNC(IF($J$7="","",(($J$8-$J$7)/$J$7)*(S14+T14)),2) -> 736.19 | V14: =S14+T14+U14 -> 1362.36 | W14: 183 | X14: =EVEN($Z$8*2/28)*W14/$Z$8 -> 15.07413509 | Y14: 1377.434135 | Z14: 5186.132601 | AA14: =IF(OR(Y14="",Z14=""),"",Y14+Z14) -> 6563.566736 | AC14: =AA14 -> 6563.566736 | AD14: =Y14 -> 1377.434135 | AE14: 5186.132601 | AH14: NORDESTE
B15: 5910.704384 | C15: 4 | E15: Refinaria Landulpho Alves (RLAM) | F15: Rodovia BA 523, KM 4 – Mataripe São Francisco do Conde - BA CEP:43900-000 | G15: Bahia | H15: SÃO FRANCISCO DO CONDE - BA | I15: =I14 -> Montes Claros - MG | J15: 4.06171043 | K15: 4.063332601 | L15: 4061.71043 | M15: =ROUND(((L15/(1-$O$6-$O$7-$O$8))-L15),2) -> 1122.35 | N15: 5184.06043 | O15: 951 | Q15: =ROUND((26.939+0.253*O15),2) -> 267.54 | S15: 267.54 | T15: 58.72 | U15: 383.58 | V15: 709.84 | W15: 204 | X15: 16.80395387 | Y15: 726.6439539 | Z15: 5184.06043 | AA15: 5910.704384 | AC15: 5910.704384 | AD15: 726.6439539 | AE15: 5184.06043 | AH15: NORDESTE
A16: 2403 | B16: 6570.776915 | C16: 5 | E16: Refinaria Lubrificantes e Derivados do Nordeste (Lubnor) | F16: Av. Leite Barbosa, s/nº - Mucuripe Fortaleza - Ceará CEP:60180-420 | G16: Ceará | H16: FORTALEZA - CE | I16: Montes Claros - MG | J16: 4.04690278 | K16: 4.063332601 | L16: 4046.90278 | M16: =ROUND(((L16/(1-$O$6-$O$7-$O$8))-L16),2) -> 1118.26 | N16: 5165.16278 | O16: 1965 | Q16: 524.08 | S16: 524.08 | T16: 115.04 | U16: 751.42 | V16: 1390.54 | W16: 183 | X16: 15.07413509 | Y16: 1405.614135 | Z16: 5165.16278 | AA16: 6570.776915 | AC16: 6570.776915 | AD16: 1405.614135 | AE16: 5165.16278 | AH16: NORDESTE
B17: 5675.116815 | C17: 6 | E17: Refinaria Capuava (Recap) | F17: Av. Alberto Soares Sampaio, 2122-A Capuava – Mauá - SP | G17: São Paulo | H17: MAUÁ - SP | I17: Montes Claros - MG | J17: 3.833433685 | K17: 3.814083778 | L17: 3833.433685 | M17: =ROUND(((L17/(1-$O$6-$O$7-$O$8))-L17),2) -> 1059.27 | N17: 4892.703685 | O17: 1002 | Q17: 280.45 | S17: 280.45 | T17: 61.56 | U17: 402.1 | V17: 744.11 | W17: 465 | X17: 38.30313015 | Y17: 782.4131301 | Z17: 4892.703685 | AA17: 5675.116815 | AC17: 5675.116815 | AD17: 782.4131301 | AE17: 4892.703685 | AH17: SUDESTE
B18: 5569.579361 | C18: 7 | E18: Refinaria Duque de Caxias (Reduc) | F18: Rodovia Washington Luiz, km 113,7 Campos Elíseos – Duque de Caxias - RJ CEP:25213-005 | G18: Rio de Janeiro | H18: DUQUE DE CAXIAS - RJ | I18: Montes Claros - MG | J18: 3.827622261 | K18: 3.814083778 | L18: 3827.622261 | M18: 1057.66 | N18: 4885.282261 | O18: 827 | Q18: 236.17 | S18: 236.17 | T18: 51.84 | U18: 338.61 | V18: 626.62 | W18: 700.2 | X18: 57.67710049 | Y18: 684.2971005 | Z18: 4885.282261 | AA18: 5569.579361 | AC18: 5569.579361 | AD18: 684.2971005 | AE18: 4885.282261 | AH18: SUDESTE
B19: 6576.052842 | C19: 8 | E19: Refinaria Alberto Pasqualini (Refap) | F19: Avenida Getúlio Vargas, 11001 - Bairro Brigadeira Canoas - RS - Brasil CEP:92420-221 | G19: Rio Grande do Sul | H19: CANOAS - RS | I19: Montes Claros - MG | J19: 3.906320173 | K19: 3.904069686 | L19: 3906.320173 | M19: 1079.41 | N19: 4985.730173 | O19: 2134 | Q19: 566.84 | S19: 566.84 | T19: 124.42 | U19: 812.72 | V19: 1503.98 | W19: 1048.2 | X19: 86.34266886 | Y19: 1590.322669 | Z19: 4985.730173 | AA19: 6576.052842 | AC19: 6576.052842 | AD19: 1590.322669 | AE19: 4985.730173 | AH19: SUL
B20: 6136.94633 | C20: 9 | E20: Unidade de Industrialização do Xisto (SIX) | F20: Rodovia do Xisto, BR 476, km 153 São Mateus do Sul – PR CEP 83900-000 | G20: Paraná | H20: SÃO MATEUS DO SUL - PR | I20: Montes Claros - MG | J20: 3.902012887 | K20: 3.904069686 | L20: 3902.012887 | M20: 1078.22 | N20: 4980.232887 | O20: 1539 | Q20: 416.31 | S20: 416.31 | T20: 91.38 | U20: 596.89 | V20: 1104.58 | W20: 632.9 | X20: 52.13344316 | Y20: 1156.713443 | Z20: 4980.232887 | AA20: 6136.94633 | AC20: 6136.94633 | AD20: 1156.713443 | AE20: 4980.232887 | AH20: SUL
B21: 5202.812034 | C21: 10 | E21: Refinaria Gabriel Passos (Regap) | F21: Av. Refinaria Gabriel Passos, 690 Distrito Industrial Paulo Camilo Sul Betim - MG CEP:32669-205 | G21: Minas Gerais | H21: BETIM - MG | I21: Montes Claros - MG | J21: 3.772715131 | K21: 3.814083778 | L21: 3772.715131 | M21: 1042.49 | N21: 4815.205131 | O21: 431 | Q21: 135.98 | S21: 135.98 | T21: 29.84 | U21: 194.95 | V21: 360.77 | W21: 325.8 | X21: 26.8369028 | Y21: 387.6069028 | Z21: 4815.205131 | AA21: =IF(OR(Y21="",Z21=""),"",Y21+Z21) -> 5202.812034 | AC21: 5202.812034 | AD21: 387.6069028 | AE21: 4815.205131 | AH21: SUDESTE
B22: 6079.489625 | C22: 11 | E22: Refinaria Presidente Getúlio Vargas (Repar) | F22: Rodovia do Xisto, BR 476, km 16 Araucária - PR CEP:83707-440 | G22: Paraná | H22: ARAUCÁRIA - PR | I22: Montes Claros - MG | J22: 3.902012887 | K22: 3.904069686 | L22: 3902.012887 | M22: 1078.22 | N22: 4980.232887 | O22: 1440 | Q22: 391.26 | S22: 391.26 | T22: 85.88 | U22: 560.98 | V22: 1038.12 | W22: 742.2 | X22: 61.13673806 | Y22: 1099.256738 | Z22: 4980.232887 | AA22: 6079.489625 | AC22: 6079.489625 | AD22: 1099.256738 | AE22: 4980.232887 | AH22: SUL
B23: 5701.266815 | C23: 12 | E23: Refinaria Presidente Bernardes (RPBC) | F23: Av. 9 de abril, 777 - Jardim das Indústrias Cubatão - SP CEP:11505-000 | G23: São Paulo | H23: CUBATÃO - SP | I23: Montes Claros - MG | J23: 3.833433685 | K23: 3.814083778 | L23: 3833.433685 | M23: 1059.27 | N23: 4892.703685 | O23: 1041 | Q23: 290.31 | S23: 290.31 | T23: 63.72 | U23: 416.23 | V23: 770.26 | W23: 465 | X23: 38.30313015 | Y23: 808.5631301 | Z23: 4892.703685 | AA23: 5701.266815 | AC23: 5701.266815 | AD23: 808.5631301 | AE23: 4892.703685 | AH23: SUDESTE
B24: 5688.901181 | C24: 13 | E24: Refinaria de Paulínia (Replan) | F24: Rodovia SP 332 - Km. 130 Bonfim - Paulínia – SP CEP:13140-000 | G24: São Paulo | H24: PAULÍNIA - SP | I24: Montes Claros - MG | J24: 3.833433685 | K24: 3.814083778 | L24: 3833.433685 | M24: 1059.27 | N24: 4892.703685 | O24: 1021 | Q24: 285.25 | S24: 285.25 | T24: 62.61 | U24: 408.98 | V24: 756.84 | W24: 477.8 | X24: 39.35749588 | Y24: 796.1974959 | Z24: 4892.703685 | AA24: 5688.901181 | AC24: 5688.901181 | AD24: 796.1974959 | AE24: 4892.703685 | AH24: SUDESTE
B25: 5647.010884 | C25: 14 | E25: Refinaria Henrique Lage (Revap) | F25: Rodovia Presidente Dutra, KM 143, S/N Bairro Jardim Diamante - São José dos Campos – SP CEP:12223-900 | G25: São Paulo | H25: SÃO JOSÉ DOS CAMPOS - SP | I25: Montes Claros - MG | J25: 3.833433685 | K25: 3.814083778 | L25: 3833.433685 | M25: 1059.27 | N25: 4892.703685 | O25: 953 | Q25: 268.05 | S25: 268.05 | T25: 58.84 | U25: 384.32 | V25: 711.21 | W25: 523.2 | X25: 43.09719934 | Y25: 754.3071993 | Z25: 4892.703685 | AA25: 5647.010884 | AC25: 5647.010884 | AD25: 754.3071993 | AE25: 4892.703685 | AH25: SUDESTE
D35: Acre
D36: Alagoas
D37: Amapá
D38: Amazonas
D39: Bahia
D40: Ceará
D41: Distrito Federal
D42: Espírito Santo
D43: Goiás
D44: Maranhão
D45: Mato Grosso
D46: Mato Grosso do Sul
D47: Minas Gerais
D48: Pará
D49: Paraíba
D50: Paraná
D51: Pernambuco
D52: Piauí
D53: Rio de Janeiro
D54: Rio Grande do Norte
D55: Rio Grande do Sul
D56: Rondônia
D57: Roraima
D58: Santa Catarina
D59: São Paulo
D60: Sergipe
D61: Tocantins
D65: ASFALTOS DILUÍDOS CM-30
D66: ASFALTOS DILUÍDOS CM-70
D67: ASFALTOS DILUÍDOS CR-250
D68: ASFALTOS DILUÍDOS CR-70
D69: CAP MODIFICADO POR BORRACHA DE PNEU AB22
D70: CAP MODIFICADO POR BORRACHA DE PNEU AB8
D71: CAP MODIFICADO POR POLÍMERO 55-75-E
D72: CAP MODIFICADO POR POLÍMERO 60-85-E
D73: CAP MODIFICADO POR POLÍMERO 65-90-E
D74: CIMENTOS ASFÁLTICOS CAP-150-200
D75: CIMENTOS ASFÁLTICOS CAP-30-45
D76: CIMENTOS ASFÁLTICOS CAP-50-70
D77: CIMENTOS ASFÁLTICOS CAP-85-100
D78: EMULSÃO ASFÁLTICA CATIÔNICA DE RUPTURA CONTROLADA PARA SERVIÇO DE LAMA ASFÁLTICA
D79: EMULSÃO ASFÁLTICA DE RUPTURA LENTA CATIÔNICA PARA SERVIÇO DE LAMA ASFÁLTICA
D80: EMULSÃO ASFÁLTICA DE RUPTURA LENTA DE CARGA NEUTRA PARA SERVIÇO DE LAMA ASFÁLTICA
D81: EMULSÃO ASFÁLTICA PARA SERVIÇO DE IMPRIMAÇÃO
D82: EMULSÕES ASF. MOD. POR POLÍMEROS RC1C-E
D83: EMULSÕES ASF. MOD. POR POLÍMEROS RL1C-E
D84: EMULSÕES ASF. MOD. POR POLÍMEROS RM1C-E
D85: EMULSÕES ASF. MOD. POR POLÍMEROS RR1C-E
D86: EMULSÕES ASF. MOD. POR POLÍMEROS RR2C-E
D87: EMULSÕES ASFÁLTICAS RL-1C
D88: EMULSÕES ASFÁLTICAS RM-1C
D89: EMULSÕES ASFÁLTICAS RM-2C
D90: EMULSÕES ASFÁLTICAS RR-1C
D91: EMULSÕES ASFÁLTICAS RR-2C

Sheet MAT.ASF
B9: PLANILHA RESUMO - MATERIAIS ASFÁLTICOS
B12: DATA-BASE | C12: PRODUTOS | D12: LOCALIDADES | H12: CUSTO ANP (R$/Kg) | J12: CUSTO ANP | K12: IMPOSTOS DO PRODUTO | L12: CUSTO DO PRODUTO COM IMPOSTOS | M12: DMT's | N12: DMT's | O12: CUSTO DO TRANSPORTE TOTAL | P12: ICMS | Q12: ATUALIZAÇÃO DO CUSTO DE TRANSPORTE | R12: CUSTO DO TRANSPORTE RODOVIA PAVIMENTADA COM IMPOSTOS E ATUALIZAÇÃO MONETÁRIA | S12: PEDÁGIO | U12: TOTAL TRANSPORTE | V12: TOTAL PRODUTO | W12: TOTAL GERAL
B13: =CAP!H9 -> 2025-02-01 | D13: REFINARIAS | E13: ENDEREÇO | F13: ORIGEM - REFINARIAS / DISTRIBUIDORAS | G13: DESTINO | H13: ESTADO | I13: REGIÃO | J13: R$/t | K13: R$/t | L13: R$/t | M13: KM | N13: KM | O13: R$/t | P13: R$/t | Q13: R$/t | R13: R$/t | S13: CUSTO POR EIXO | T13: R$/t | U13: R$/t | V13: R$/t | W13: R$/t
B14: 1 | C14: CAP 50/70 | D14: Refinaria Abreu e Lima | E14: Rodovia PE 60, Km 10 - Ipojuca - PE CEP:55590-000 | F14: =VLOOKUP($W14,CAP!$B:$AA,7,FALSE) -> BETIM - MG | G14: =VLOOKUP($W14,CAP!$B:$AA,8,FALSE) -> Montes Claros - MG | H14: =VLOOKUP($W14,CAP!$B:$AA,9,FALSE) -> 3.772715131 | I14: =VLOOKUP($W14,CAP!$B:$AA,10,FALSE) -> 3.814083778 | J14: =VLOOKUP($W14,CAP!$B:$AA,11,FALSE) -> 3772.715131 | K14: =VLOOKUP($W14,CAP!$B:$AA,12,FALSE) -> 1042.49 | L14: =VLOOKUP($W14,CAP!$B:$AA,13,FALSE) -> 4815.205131 | M14: =VLOOKUP($W14,CAP!$B$13:$AA$25,14,FALSE) -> 431 | N14: =VLOOKUP($W14,'[2]Transporte Cap 50-70'!$B:$AA,15,FALSE) ->  | O14: =VLOOKUP($W14,CAP!$B:$AA,18,FALSE) -> 135.98 | P14: =VLOOKUP($W14,CAP!$B:$AA,19,FALSE) -> 29.84 | Q14: =VLOOKUP($W14,CAP!$B:$AA,20,FALSE) -> 194.95 | R14: =VLOOKUP($W14,CAP!$B:$AA,21,FALSE) -> 360.77 | S14: =VLOOKUP($W14,CAP!$B:$AA,22,FALSE) -> 325.8 | T14: =VLOOKUP($W14,CAP!$B:$AA,23,FALSE) -> 26.8369028 | U14: =VLOOKUP($W14,CAP!$B:$AA,24,FALSE) -> 387.6069028 | V14: =VLOOKUP($W14,CAP!$B:$AA,25,FALSE) -> 4815.205131 | W14: =SMALL(CAP!$AA$13:$AA$25,1) -> 5202.812034
B15: 2 | D15: Refinaria Potiguar Clara Camarão | E15: Rodovia RN 221, KM 25 - Guamaré - RN CEP:59598-000 | F15: =VLOOKUP($W15,CAP!$B:$AA,7,FALSE) -> DUQUE DE CAXIAS - RJ | G15: =VLOOKUP($W15,CAP!$B:$AA,8,FALSE) -> Montes Claros - MG | H15: =VLOOKUP($W15,CAP!$B:$AA,9,FALSE) -> 3.827622261 | I15: =VLOOKUP($W15,CAP!$B:$AA,10,FALSE) -> 3.814083778 | J15: =VLOOKUP($W15,CAP!$B:$AA,11,FALSE) -> 3827.622261 | K15: =VLOOKUP($W15,CAP!$B:$AA,12,FALSE) -> 1057.66 | L15: =VLOOKUP($W15,CAP!$B:$AA,13,FALSE) -> 4885.282261 | M15: =VLOOKUP($W15,CAP!$B$13:$AA$25,14,FALSE) -> 827 | N15: =VLOOKUP($W15,'[2]Transporte Cap 50-70'!$B:$AA,15,FALSE) ->  | O15: =VLOOKUP($W15,CAP!$B:$AA,18,FALSE) -> 236.17 | P15: =VLOOKUP($W15,CAP!$B:$AA,19,FALSE) -> 51.84 | Q15: =VLOOKUP($W15,CAP!$B:$AA,20,FALSE) -> 338.61 | R15: =VLOOKUP($W15,CAP!$B:$AA,21,FALSE) -> 626.62 | S15: =VLOOKUP($W15,CAP!$B:$AA,22,FALSE) -> 700.2 | T15: =VLOOKUP($W15,CAP!$B:$AA,23,FALSE) -> 57.67710049 | U15: =VLOOKUP($W15,CAP!$B:$AA,24,FALSE) -> 684.2971005 | V15: =VLOOKUP($W15,CAP!$B:$AA,25,FALSE) -> 4885.282261 | W15: =SMALL(CAP!$AA$13:$AA$25,2) -> 5569.579361
B16: 3 | D16: Complexo Petroquímico do Rio de Janeiro (Comperj) | E16: Rodovia Estadual RJ-116 - Km 5,2 - Acesso A-1, s/n, Complemento Sambaetiba - Zona Urbana do 4º Distrito de Itaboraí - RJ CEP:24841-203 | F16: =VLOOKUP($W16,CAP!$B:$AA,7,FALSE) -> SÃO JOSÉ DOS CAMPOS - SP | G16: =VLOOKUP($W16,CAP!$B:$AA,8,FALSE) -> Montes Claros - MG | H16: =VLOOKUP($W16,CAP!$B:$AA,9,FALSE) -> 3.833433685 | I16: =VLOOKUP($W16,CAP!$B:$AA,10,FALSE) -> 3.814083778 | J16: =VLOOKUP($W16,CAP!$B:$AA,11,FALSE) -> 3833.433685 | K16: =VLOOKUP($W16,CAP!$B:$AA,12,FALSE) -> 1059.27 | L16: =VLOOKUP($W16,CAP!$B:$AA,13,FALSE) -> 4892.703685 | M16: =VLOOKUP($W16,CAP!$B$13:$AA$25,14,FALSE) -> 953 | N16: =VLOOKUP($W16,'[2]Transporte Cap 50-70'!$B:$AA,15,FALSE) ->  | O16: =VLOOKUP($W16,CAP!$B:$AA,18,FALSE) -> 268.05 | P16: =VLOOKUP($W16,CAP!$B:$AA,19,FALSE) -> 58.84 | Q16: =VLOOKUP($W16,CAP!$B:$AA,20,FALSE) -> 384.32 | R16: =VLOOKUP($W16,CAP!$B:$AA,21,FALSE) -> 711.21 | S16: =VLOOKUP($W16,CAP!$B:$AA,22,FALSE) -> 523.2 | T16: =VLOOKUP($W16,CAP!$B:$AA,23,FALSE) -> 43.09719934 | U16: =VLOOKUP($W16,CAP!$B:$AA,24,FALSE) -> 754.3071993 | V16: =VLOOKUP($W16,CAP!$B:$AA,25,FALSE) -> 4892.703685 | W16: =SMALL(CAP!$AA$13:$AA$25,3) -> 5647.010884
B17: 4 | F17: =VLOOKUP($W17,CAP!$B:$AA,7,FALSE) -> MAUÁ - SP | G17: =VLOOKUP($W17,CAP!$B:$AA,8,FALSE) -> Montes Claros - MG | H17: =VLOOKUP($W17,CAP!$B:$AA,9,FALSE) -> 3.833433685 | I17: =VLOOKUP($W17,CAP!$B:$AA,10,FALSE) -> 3.814083778 | J17: =VLOOKUP($W17,CAP!$B:$AA,11,FALSE) -> 3833.433685 | K17: =VLOOKUP($W17,CAP!$B:$AA,12,FALSE) -> 1059.27 | L17: =VLOOKUP($W17,CAP!$B:$AA,13,FALSE) -> 4892.703685 | M17: =VLOOKUP($W17,CAP!$B$13:$AA$25,14,FALSE) -> 1002 | N17: =VLOOKUP($W17,'[2]Transporte Cap 50-70'!$B:$AA,15,FALSE) ->  | O17: =VLOOKUP($W17,CAP!$B:$AA,18,FALSE) -> 280.45 | P17: =VLOOKUP($W17,CAP!$B:$AA,19,FALSE) -> 61.56 | Q17: =VLOOKUP($W17,CAP!$B:$AA,20,FALSE) -> 402.1 | R17: =VLOOKUP($W17,CAP!$B:$AA,21,FALSE) -> 744.11 | S17: =VLOOKUP($W17,CAP!$B:$AA,22,FALSE) -> 465 | T17: =VLOOKUP($W17,CAP!$B:$AA,23,FALSE) -> 38.30313015 | U17: =VLOOKUP($W17,CAP!$B:$AA,24,FALSE) -> 782.4131301 | V17: =VLOOKUP($W17,CAP!$B:$AA,25,FALSE) -> 4892.703685 | W17: =SMALL(CAP!$AA$13:$AA$25,4) -> 5675.116815
B18: 5 | F18: =VLOOKUP($W18,CAP!$B:$AA,7,FALSE) -> PAULÍNIA - SP | G18: =VLOOKUP($W18,CAP!$B:$AA,8,FALSE) -> Montes Claros - MG | H18: =VLOOKUP($W18,CAP!$B:$AA,9,FALSE) -> 3.833433685 | I18: =VLOOKUP($W18,CAP!$B:$AA,10,FALSE) -> 3.814083778 | J18: =VLOOKUP($W18,CAP!$B:$AA,11,FALSE) -> 3833.433685 | K18: =VLOOKUP($W18,CAP!$B:$AA,12,FALSE) -> 1059.27 | L18: =VLOOKUP($W18,CAP!$B:$AA,13,FALSE) -> 4892.703685 | M18: =VLOOKUP($W18,CAP!$B$13:$AA$25,14,FALSE) -> 1021 | N18: =VLOOKUP($W18,'[2]Transporte Cap 50-70'!$B:$AA,15,FALSE) ->  | O18: =VLOOKUP($W18,CAP!$B:$AA,18,FALSE) -> 285.25 | P18: =VLOOKUP($W18,CAP!$B:$AA,19,FALSE) -> 62.61 | Q18: =VLOOKUP($W18,CAP!$B:$AA,20,FALSE) -> 408.98 | R18: =VLOOKUP($W18,CAP!$B:$AA,21,FALSE) -> 756.84 | S18: =VLOOKUP($W18,CAP!$B:$AA,22,FALSE) -> 477.8 | T18: =VLOOKUP($W18,CAP!$B:$AA,23,FALSE) -> 39.35749588 | U18: =VLOOKUP($W18,CAP!$B:$AA,24,FALSE) -> 796.1974959 | V18: =VLOOKUP($W18,CAP!$B:$AA,25,FALSE) -> 4892.703685 | W18: =SMALL(CAP!$AA$13:$AA$25,5) -> 5688.901181
B19: 6 | F19: =VLOOKUP($W19,CAP!$B:$AA,7,FALSE) -> CUBATÃO - SP | G19: =VLOOKUP($W19,CAP!$B:$AA,8,FALSE) -> Montes Claros - MG | H19: =VLOOKUP($W19,CAP!$B:$AA,9,FALSE) -> 3.833433685 | I19: =VLOOKUP($W19,CAP!$B:$AA,10,FALSE) -> 3.814083778 | J19: =VLOOKUP($W19,CAP!$B:$AA,11,FALSE) -> 3833.433685 | K19: =VLOOKUP($W19,CAP!$B:$AA,12,FALSE) -> 1059.27 | L19: =VLOOKUP($W19,CAP!$B:$AA,13,FALSE) -> 4892.703685 | M19: =VLOOKUP($W19,CAP!$B$13:$AA$25,14,FALSE) -> 1041 | N19: =VLOOKUP($W19,'[2]Transporte Cap 50-70'!$B:$AA,15,FALSE) ->  | O19: =VLOOKUP($W19,CAP!$B:$AA,18,FALSE) -> 290.31 | P19: =VLOOKUP($W19,CAP!$B:$AA,19,FALSE) -> 63.72 | Q19: =VLOOKUP($W19,CAP!$B:$AA,20,FALSE) -> 416.23 | R19: =VLOOKUP($W19,CAP!$B:$AA,21,FALSE) -> 770.26 | S19: =VLOOKUP($W19,CAP!$B:$AA,22,FALSE) -> 465 | T19: =VLOOKUP($W19,CAP!$B:$AA,23,FALSE) -> 38.30313015 | U19: =VLOOKUP($W19,CAP!$B:$AA,24,FALSE) -> 808.5631301 | V19: =VLOOKUP($W19,CAP!$B:$AA,25,FALSE) -> 4892.703685 | W19: =SMALL(CAP!$AA$13:$AA$25,6) -> 5701.266815
B21: 1 | C21: EMULSÃO ASFÁLTICA PARA IMPRIMAÇÃO (EAI) | D21: Refinaria Abreu e Lima | E21: Rodovia PE 60, Km 10 - Ipojuca - PE CEP:55590-000 | F21: =VLOOKUP($W21,EAI!$B$13:$AA$24,7,FALSE) -> BETIM - MG | G21: =VLOOKUP($W21,EAI!$B$13:$AA$24,8,FALSE) -> Montes Claros - MG | H21: =VLOOKUP($W21,EAI!$B$13:$AA$24,9,FALSE) -> 2.76742706 | I21: =VLOOKUP($W21,EAI!$B$13:$AA$24,10,FALSE) -> 2.760933834 | J21: =VLOOKUP($W21,EAI!$B$13:$AA$24,11,FALSE) -> 2767.42706 | K21: =VLOOKUP($W21,EAI!$B$13:$AA$24,12,FALSE) -> 764.71 | L21: =VLOOKUP($W21,EAI!$B$13:$AA$24,13,FALSE) -> 3532.13706 | M21: =VLOOKUP($W21,EAI!$B$13:$AA$24,14,FALSE) -> 431 | N21: =VLOOKUP($W21,'[2]Transporte CM-30'!$B$13:$AA$25,15,FALSE) ->  | O21: =VLOOKUP($W21,EAI!$B$13:$AA$24,18,FALSE) -> 135.98 | P21: =VLOOKUP($W21,EAI!$B$13:$AA$24,19,FALSE) -> 29.84 | Q21: =VLOOKUP($W21,EAI!$B$13:$AA$24,20,FALSE) -> 194.95 | R21: =VLOOKUP($W21,EAI!$B$13:$AA$24,21,FALSE) -> 360.77 | S21: =VLOOKUP($W21,EAI!$B$13:$AA$24,22,FALSE) -> 325.8 | T21: =VLOOKUP($W21,EAI!$B$13:$AA$24,23,FALSE) -> 37.23428571 | U21: =VLOOKUP($W21,EAI!$B$13:$AA$24,24,FALSE) -> 398.0042857 | V21: =VLOOKUP($W21,EAI!$B:$AA,25,FALSE) -> 3532.13706 | W21: =SMALL(EAI!$AA$13:$AA$24,1) -> 3930.141345
B22: 2 | D22: Refinaria Potiguar Clara Camarão | E22: Rodovia RN 221, KM 25 - Guamaré - RN CEP:59598-000 | F22: =VLOOKUP($W22,EAI!$B$13:$AA$24,7,FALSE) -> SÃO FRANCISCO DO CONDE - BA | G22: =VLOOKUP($W22,EAI!$B$13:$AA$24,8,FALSE) -> Montes Claros - MG | H22: =VLOOKUP($W22,EAI!$B$13:$AA$24,9,FALSE) -> - | I22: =VLOOKUP($W22,EAI!$B$13:$AA$24,10,FALSE) -> 2.710401795 | J22: =VLOOKUP($W22,EAI!$B$13:$AA$24,11,FALSE) -> 2710.401795 | K22: =VLOOKUP($W22,EAI!$B$13:$AA$24,12,FALSE) -> 748.95 | L22: =VLOOKUP($W22,EAI!$B$13:$AA$24,13,FALSE) -> 3459.351795 | M22: =VLOOKUP($W22,EAI!$B$13:$AA$24,14,FALSE) -> 951 | N22: =VLOOKUP($W22,'[2]Transporte CM-30'!$B$13:$AA$25,15,FALSE) ->  | O22: =VLOOKUP($W22,EAI!$B$13:$AA$24,18,FALSE) -> 267.54 | P22: =VLOOKUP($W22,EAI!$B$13:$AA$24,19,FALSE) -> 58.72 | Q22: =VLOOKUP($W22,EAI!$B$13:$AA$24,20,FALSE) -> 383.58 | R22: =VLOOKUP($W22,EAI!$B$13:$AA$24,21,FALSE) -> 709.84 | S22: =VLOOKUP($W22,EAI!$B$13:$AA$24,22,FALSE) -> 204 | T22: =VLOOKUP($W22,EAI!$B$13:$AA$24,23,FALSE) -> 23.31428571 | U22: =VLOOKUP($W22,EAI!$B$13:$AA$24,24,FALSE) -> 733.1542857 | V22: =VLOOKUP($W22,EAI!$B:$AA,25,FALSE) -> 3459.351795 | W22: =SMALL(EAI!$AA$13:$AA$24,2) -> 4192.506081
B23: 3 | D23: Complexo Petroquímico do Rio de Janeiro (Comperj) | E23: Rodovia Estadual RJ-116 - Km 5,2 - Acesso A-1, s/n, Complemento Sambaetiba - Zona Urbana do 4º Distrito de Itaboraí - RJ CEP:24841-203 | F23: =VLOOKUP($W23,EAI!$B$13:$AA$24,7,FALSE) -> DUQUE DE CAXIAS - RJ | G23: =VLOOKUP($W23,EAI!$B$13:$AA$24,8,FALSE) -> Montes Claros - MG | H23: =VLOOKUP($W23,EAI!$B$13:$AA$24,9,FALSE) -> - | I23: =VLOOKUP($W23,EAI!$B$13:$AA$24,10,FALSE) -> 2.760933834 | J23: =VLOOKUP($W23,EAI!$B$13:$AA$24,11,FALSE) -> 2760.933834 | K23: =VLOOKUP($W23,EAI!$B$13:$AA$24,12,FALSE) -> 762.91 | L23: =VLOOKUP($W23,EAI!$B$13:$AA$24,13,FALSE) -> 3523.843834 | M23: =VLOOKUP($W23,EAI!$B$13:$AA$24,14,FALSE) -> 827 | N23: =VLOOKUP($W23,'[2]Transporte CM-30'!$B$13:$AA$25,15,FALSE) ->  | O23: =VLOOKUP($W23,EAI!$B$13:$AA$24,18,FALSE) -> 236.17 | P23: =VLOOKUP($W23,EAI!$B$13:$AA$24,19,FALSE) -> 51.84 | Q23: =VLOOKUP($W23,EAI!$B$13:$AA$24,20,FALSE) -> 338.61 | R23: =VLOOKUP($W23,EAI!$B$13:$AA$24,21,FALSE) -> 626.62 | S23: =VLOOKUP($W23,EAI!$B$13:$AA$24,22,FALSE) -> 700.2 | T23: =VLOOKUP($W23,EAI!$B$13:$AA$24,23,FALSE) -> 80.02285714 | U23: =VLOOKUP($W23,EAI!$B$13:$AA$24,24,FALSE) -> 706.6428571 | V23: =VLOOKUP($W23,EAI!$B:$AA,25,FALSE) -> 3523.843834 | W23: =SMALL(EAI!$AA$13:$AA$24,3) -> 4230.486691
B24: 4 | F24: =VLOOKUP($W24,EAI!$B$13:$AA$24,7,FALSE) -> MAUÁ - SP | G24: =VLOOKUP($W24,EAI!$B$13:$AA$24,8,FALSE) -> Montes Claros - MG | H24: =VLOOKUP($W24,EAI!$B$13:$AA$24,9,FALSE) -> 2.729338775 | I24: =VLOOKUP($W24,EAI!$B$13:$AA$24,10,FALSE) -> 2.760933834 | J24: =VLOOKUP($W24,EAI!$B$13:$AA$24,11,FALSE) -> 2729.338775 | K24: =VLOOKUP($W24,EAI!$B$13:$AA$24,12,FALSE) -> 754.18 | L24: =VLOOKUP($W24,EAI!$B$13:$AA$24,13,FALSE) -> 3483.518775 | M24: =VLOOKUP($W24,EAI!$B$13:$AA$24,14,FALSE) -> 1002 | N24: =VLOOKUP($W24,'[2]Transporte CM-30'!$B$13:$AA$25,15,FALSE) ->  | O24: =VLOOKUP($W24,EAI!$B$13:$AA$24,18,FALSE) -> 280.45 | P24: =VLOOKUP($W24,EAI!$B$13:$AA$24,19,FALSE) -> 61.56 | Q24: =VLOOKUP($W24,EAI!$B$13:$AA$24,20,FALSE) -> 402.1 | R24: =VLOOKUP($W24,EAI!$B$13:$AA$24,21,FALSE) -> 744.11 | S24: =VLOOKUP($W24,EAI!$B$13:$AA$24,22,FALSE) -> 465 | T24: =VLOOKUP($W24,EAI!$B$13:$AA$24,23,FALSE) -> 53.14285714 | U24: =VLOOKUP($W24,EAI!$B$13:$AA$24,24,FALSE) -> 797.2528571 | V24: =VLOOKUP($W24,EAI!$B:$AA,25,FALSE) -> 3483.518775 | W24: =SMALL(EAI!$AA$13:$AA$24,4) -> 4280.771632
B25: 5 | F25: =VLOOKUP($W25,EAI!$B$13:$AA$24,7,FALSE) -> PAULÍNIA - SP | G25: =VLOOKUP($W25,EAI!$B$13:$AA$24,8,FALSE) -> Montes Claros - MG | H25: =VLOOKUP($W25,EAI!$B$13:$AA$24,9,FALSE) -> 2.729338775 | I25: =VLOOKUP($W25,EAI!$B$13:$AA$24,10,FALSE) -> 2.760933834 | J25: =VLOOKUP($W25,EAI!$B$13:$AA$24,11,FALSE) -> 2729.338775 | K25: =VLOOKUP($W25,EAI!$B$13:$AA$24,12,FALSE) -> 754.18 | L25: =VLOOKUP($W25,EAI!$B$13:$AA$24,13,FALSE) -> 3483.518775 | M25: =VLOOKUP($W25,EAI!$B$13:$AA$24,14,FALSE) -> 1021 | N25: =VLOOKUP($W25,'[2]Transporte CM-30'!$B$13:$AA$25,15,FALSE) ->  | O25: =VLOOKUP($W25,EAI!$B$13:$AA$24,18,FALSE) -> 285.25 | P25: =VLOOKUP($W25,EAI!$B$13:$AA$24,19,FALSE) -> 62.61 | Q25: =VLOOKUP($W25,EAI!$B$13:$AA$24,20,FALSE) -> 408.98 | R25: =VLOOKUP($W25,EAI!$B$13:$AA$24,21,FALSE) -> 756.84 | S25: =VLOOKUP($W25,EAI!$B$13:$AA$24,22,FALSE) -> 477.8 | T25: =VLOOKUP($W25,EAI!$B$13:$AA$24,23,FALSE) -> 54.60571429 | U25: =VLOOKUP($W25,EAI!$B$13:$AA$24,24,FALSE) -> 811.4457143 | V25: =VLOOKUP($W25,EAI!$B:$AA,25,FALSE) -> 3483.518775 | W25: =SMALL(EAI!$AA$13:$AA$24,5) -> 4294.964489
B26: 6 | F26: =VLOOKUP($W26,EAI!$B$13:$AA$24,7,FALSE) -> CUBATÃO - SP | G26: =VLOOKUP($W26,EAI!$B$13:$AA$24,8,FALSE) -> Montes Claros - MG | H26: =VLOOKUP($W26,EAI!$B$13:$AA$24,9,FALSE) -> 2.729338775 | I26: =VLOOKUP($W26,EAI!$B$13:$AA$24,10,FALSE) -> 2.760933834 | J26: =VLOOKUP($W26,EAI!$B$13:$AA$24,11,FALSE) -> 2729.338775 | K26: =VLOOKUP($W26,EAI!$B$13:$AA$24,12,FALSE) -> 754.18 | L26: =VLOOKUP($W26,EAI!$B$13:$AA$24,13,FALSE) -> 3483.518775 | M26: =VLOOKUP($W26,EAI!$B$13:$AA$24,14,FALSE) -> 1041 | N26: =VLOOKUP($W26,'[2]Transporte CM-30'!$B$13:$AA$25,15,FALSE) ->  | O26: =VLOOKUP($W26,EAI!$B$13:$AA$24,18,FALSE) -> 290.31 | P26: =VLOOKUP($W26,EAI!$B$13:$AA$24,19,FALSE) -> 63.72 | Q26: =VLOOKUP($W26,EAI!$B$13:$AA$24,20,FALSE) -> 416.23 | R26: =VLOOKUP($W26,EAI!$B$13:$AA$24,21,FALSE) -> 770.26 | S26: =VLOOKUP($W26,EAI!$B$13:$AA$24,22,FALSE) -> 465 | T26: =VLOOKUP($W26,EAI!$B$13:$AA$24,23,FALSE) -> 53.14285714 | U26: =VLOOKUP($W26,EAI!$B$13:$AA$24,24,FALSE) -> 823.4028571 | V26: =VLOOKUP($W26,EAI!$B:$AA,25,FALSE) -> 3483.518775 | W26: =SMALL(EAI!$AA$13:$AA$24,6) -> 4306.921632
B28: 1 | C28: RR1-C | D28: Refinaria Abreu e Lima | E28: Rodovia PE 60, Km 10 - Ipojuca - PE CEP:55590-000 | F28: =VLOOKUP($W28,'RR-1C'!$B:$AA,7,FALSE) -> SARZEDO - MG | G28: =VLOOKUP($W28,'RR-1C'!$B:$AA,8,FALSE) -> Montes Claros - MG | H28: =VLOOKUP($W28,'RR-1C'!$B:$AA,9,FALSE) -> 2.727202613 | I28: =VLOOKUP($W28,'RR-1C'!$B:$AA,10,FALSE) -> 2.730001372 | J28: =VLOOKUP($W28,'RR-1C'!$B:$AA,11,FALSE) -> 2727.202613 | K28: =VLOOKUP($W28,'RR-1C'!$B:$AA,12,FALSE) -> 753.59 | L28: =VLOOKUP($W28,'RR-1C'!$B:$AA,13,FALSE) -> 3480.792613 | M28: =VLOOKUP($W28,'RR-1C'!$B:$AA,14,FALSE) -> 439 | N28: =VLOOKUP($W28,'[2]Transporte RR-1C'!$B:$AA,15,FALSE) ->  | O28: =VLOOKUP($W28,'RR-1C'!$B:$AA,18,FALSE) -> 138.01 | P28: =VLOOKUP($W28,'RR-1C'!$B:$AA,19,FALSE) -> 30.29 | Q28: =VLOOKUP($W28,'RR-1C'!$B:$AA,20,FALSE) -> 197.87 | R28: =VLOOKUP($W28,'RR-1C'!$B:$AA,21,FALSE) -> 366.17 | S28: =VLOOKUP($W28,'RR-1C'!$B:$AA,22,FALSE) -> 325.8 | T28: =VLOOKUP($W28,'RR-1C'!$B:$AA,23,FALSE) -> 123.0594901 | U28: =VLOOKUP($W28,'RR-1C'!$B:$AA,24,FALSE) -> 489.2294901 | V28: =VLOOKUP($W28,'RR-1C'!$B:$AA,25,FALSE) -> 3480.792613 | W28: =SMALL('RR-1C'!$AA$13:$AA$27,1) -> 3970.022103
B29: 2 | D29: Refinaria Potiguar Clara Camarão | E29: Rodovia RN 221, KM 25 - Guamaré - RN CEP:59598-000 | F29: =VLOOKUP($W29,'RR-1C'!$B:$AA,7,FALSE) -> UBERLANDIA - MG | G29: =VLOOKUP($W29,'RR-1C'!$B:$AA,8,FALSE) -> Montes Claros - MG | H29: =VLOOKUP($W29,'RR-1C'!$B:$AA,9,FALSE) -> 2.727202613 | I29: =VLOOKUP($W29,'RR-1C'!$B:$AA,10,FALSE) -> 2.730001372 | J29: =VLOOKUP($W29,'RR-1C'!$B:$AA,11,FALSE) -> 2727.202613 | K29: =VLOOKUP($W29,'RR-1C'!$B:$AA,12,FALSE) -> 753.59 | L29: =VLOOKUP($W29,'RR-1C'!$B:$AA,13,FALSE) -> 3480.792613 | M29: =VLOOKUP($W29,'RR-1C'!$B:$AA,14,FALSE) -> 633 | N29: =VLOOKUP($W29,'[2]Transporte RR-1C'!$B:$AA,15,FALSE) ->  | O29: =VLOOKUP($W29,'RR-1C'!$B:$AA,18,FALSE) -> 187.09 | P29: =VLOOKUP($W29,'RR-1C'!$B:$AA,19,FALSE) -> 41.06 | Q29: =VLOOKUP($W29,'RR-1C'!$B:$AA,20,FALSE) -> 268.23 | R29: =VLOOKUP($W29,'RR-1C'!$B:$AA,21,FALSE) -> 496.38 | S29: =VLOOKUP($W29,'RR-1C'!$B:$AA,22,FALSE) -> 152.4 | T29: =VLOOKUP($W29,'RR-1C'!$B:$AA,23,FALSE) -> 57.56373938 | U29: =VLOOKUP($W29,'RR-1C'!$B:$AA,24,FALSE) -> 553.9437394 | V29: =VLOOKUP($W29,'RR-1C'!$B:$AA,25,FALSE) -> 3480.792613 | W29: =SMALL('RR-1C'!$AA$13:$AA$27,2) -> 4034.736352
B30: 3 | D30: Complexo Petroquímico do Rio de Janeiro (Comperj) | E30: Rodovia Estadual RJ-116 - Km 5,2 - Acesso A-1, s/n, Complemento Sambaetiba - Zona Urbana do 4º Distrito de Itaboraí - RJ CEP:24841-203 | F30: =VLOOKUP($W30,'RR-1C'!$B:$AA,7,FALSE) -> DUQUE DE CAXIAS - RJ | G30: =VLOOKUP($W30,'RR-1C'!$B:$AA,8,FALSE) -> Montes Claros - MG | H30: =VLOOKUP($W30,'RR-1C'!$B:$AA,9,FALSE) -> - | I30: =VLOOKUP($W30,'RR-1C'!$B:$AA,10,FALSE) -> 2.730001372 | J30: =VLOOKUP($W30,'RR-1C'!$B:$AA,11,FALSE) -> 2730.001372 | K30: =VLOOKUP($W30,'RR-1C'!$B:$AA,12,FALSE) -> 754.37 | L30: =VLOOKUP($W30,'RR-1C'!$B:$AA,13,FALSE) -> 3484.371372 | M30: =VLOOKUP($W30,'RR-1C'!$B:$AA,14,FALSE) -> 829 | N30: =VLOOKUP($W30,'[2]Transporte RR-1C'!$B:$AA,15,FALSE) ->  | O30: =VLOOKUP($W30,'RR-1C'!$B:$AA,18,FALSE) -> 236.68 | P30: =VLOOKUP($W30,'RR-1C'!$B:$AA,19,FALSE) -> 51.95 | Q30: =VLOOKUP($W30,'RR-1C'!$B:$AA,20,FALSE) -> 339.34 | R30: =VLOOKUP($W30,'RR-1C'!$B:$AA,21,FALSE) -> 627.97 | S30: =VLOOKUP($W30,'RR-1C'!$B:$AA,22,FALSE) -> 700.2 | T30: =VLOOKUP($W30,'RR-1C'!$B:$AA,23,FALSE) -> 264.4759207 | U30: =VLOOKUP($W30,'RR-1C'!$B:$AA,24,FALSE) -> 892.4459207 | V30: =VLOOKUP($W30,'RR-1C'!$B:$AA,25,FALSE) -> 3484.371372 | W30: =SMALL('RR-1C'!$AA$13:$AA$27,3) -> 4376.817292
B31: 4 | D31: Refinaria Abreu e Lima | E31: Rodovia PE 60, Km 10 - Ipojuca - PE CEP:55590-000 | F31: =VLOOKUP($W31,'RR-1C'!$B:$AA,7,FALSE) -> CACAPAVA - SP | G31: =VLOOKUP($W31,'RR-1C'!$B:$AA,8,FALSE) -> Montes Claros - MG | H31: =VLOOKUP($W31,'RR-1C'!$B:$AA,9,FALSE) -> 2.755585476 | I31: =VLOOKUP($W31,'RR-1C'!$B:$AA,10,FALSE) -> 2.730001372 | J31: =VLOOKUP($W31,'RR-1C'!$B:$AA,11,FALSE) -> 2755.585476 | K31: =VLOOKUP($W31,'RR-1C'!$B:$AA,12,FALSE) -> 761.43 | L31: =VLOOKUP($W31,'RR-1C'!$B:$AA,13,FALSE) -> 3517.015476 | M31: =VLOOKUP($W31,'RR-1C'!$B:$AA,14,FALSE) -> 934 | N31: =VLOOKUP($W31,'[2]Transporte RR-1C'!$B:$AA,15,FALSE) ->  | O31: =VLOOKUP($W31,'RR-1C'!$B:$AA,18,FALSE) -> 263.24 | P31: =VLOOKUP($W31,'RR-1C'!$B:$AA,19,FALSE) -> 57.78 | Q31: =VLOOKUP($W31,'RR-1C'!$B:$AA,20,FALSE) -> 377.42 | R31: =VLOOKUP($W31,'RR-1C'!$B:$AA,21,FALSE) -> 698.44 | S31: =VLOOKUP($W31,'RR-1C'!$B:$AA,22,FALSE) -> 523.2 | T31: =VLOOKUP($W31,'RR-1C'!$B:$AA,23,FALSE) -> 197.6203966 | U31: =VLOOKUP($W31,'RR-1C'!$B:$AA,24,FALSE) -> 896.0603966 | V31: =VLOOKUP($W31,'RR-1C'!$B:$AA,25,FALSE) -> 3517.015476 | W31: =SMALL('RR-1C'!$AA$13:$AA$27,4) -> 4413.075872
B32: 5 | D32: Refinaria Potiguar Clara Camarão | E32: Rodovia RN 221, KM 25 - Guamaré - RN CEP:59598-000 | F32: =VLOOKUP($W32,'RR-1C'!$B:$AA,7,FALSE) -> CAIEIRAS - SP | G32: =VLOOKUP($W32,'RR-1C'!$B:$AA,8,FALSE) -> Montes Claros - MG | H32: =VLOOKUP($W32,'RR-1C'!$B:$AA,9,FALSE) -> 2.755585476 | I32: =VLOOKUP($W32,'RR-1C'!$B:$AA,10,FALSE) -> 2.730001372 | J32: =VLOOKUP($W32,'RR-1C'!$B:$AA,11,FALSE) -> 2755.585476 | K32: =VLOOKUP($W32,'RR-1C'!$B:$AA,12,FALSE) -> 761.43 | L32: =VLOOKUP($W32,'RR-1C'!$B:$AA,13,FALSE) -> 3517.015476 | M32: =VLOOKUP($W32,'RR-1C'!$B:$AA,14,FALSE) -> 979 | N32: =VLOOKUP($W32,'[2]Transporte RR-1C'!$B:$AA,15,FALSE) ->  | O32: =VLOOKUP($W32,'RR-1C'!$B:$AA,18,FALSE) -> 274.63 | P32: =VLOOKUP($W32,'RR-1C'!$B:$AA,19,FALSE) -> 60.28 | Q32: =VLOOKUP($W32,'RR-1C'!$B:$AA,20,FALSE) -> 393.75 | R32: =VLOOKUP($W32,'RR-1C'!$B:$AA,21,FALSE) -> 728.66 | S32: =VLOOKUP($W32,'RR-1C'!$B:$AA,22,FALSE) -> 447.6 | T32: =VLOOKUP($W32,'RR-1C'!$B:$AA,23,FALSE) -> 169.0651558 | U32: =VLOOKUP($W32,'RR-1C'!$B:$AA,24,FALSE) -> 897.7251558 | V32: =VLOOKUP($W32,'RR-1C'!$B:$AA,25,FALSE) -> 3517.015476 | W32: =SMALL('RR-1C'!$AA$13:$AA$27,5) -> 4414.740631
B33: 6 | D33: Complexo Petroquímico do Rio de Janeiro (Comperj) | E33: Rodovia Estadual RJ-116 - Km 5,2 - Acesso A-1, s/n, Complemento Sambaetiba - Zona Urbana do 4º Distrito de Itaboraí - RJ CEP:24841-203 | F33: =VLOOKUP($W33,'RR-1C'!$B:$AA,7,FALSE) -> ANÁPOLIS - GO | G33: =VLOOKUP($W33,'RR-1C'!$B:$AA,8,FALSE) -> Montes Claros - MG | H33: =VLOOKUP($W33,'RR-1C'!$B:$AA,9,FALSE) -> 2.943001896 | I33: =VLOOKUP($W33,'RR-1C'!$B:$AA,10,FALSE) -> 3.069585773 | J33: =VLOOKUP($W33,'RR-1C'!$B:$AA,11,FALSE) -> 2943.001896 | K33: =VLOOKUP($W33,'RR-1C'!$B:$AA,12,FALSE) -> 813.22 | L33: =VLOOKUP($W33,'RR-1C'!$B:$AA,13,FALSE) -> 3756.221896 | M33: =VLOOKUP($W33,'RR-1C'!$B:$AA,14,FALSE) -> 796 | N33: =VLOOKUP($W33,'[2]Transporte RR-1C'!$B:$AA,15,FALSE) ->  | O33: =VLOOKUP($W33,'RR-1C'!$B:$AA,18,FALSE) -> 228.33 | P33: =VLOOKUP($W33,'RR-1C'!$B:$AA,19,FALSE) -> 50.12 | Q33: =VLOOKUP($W33,'RR-1C'!$B:$AA,20,FALSE) -> 327.37 | R33: =VLOOKUP($W33,'RR-1C'!$B:$AA,21,FALSE) -> 605.82 | S33: =VLOOKUP($W33,'RR-1C'!$B:$AA,22,FALSE) -> 195.6 | T33: =VLOOKUP($W33,'RR-1C'!$B:$AA,23,FALSE) -> 73.88101983 | U33: =VLOOKUP($W33,'RR-1C'!$B:$AA,24,FALSE) -> 679.7010198 | V33: =VLOOKUP($W33,'RR-1C'!$B:$AA,25,FALSE) -> 3756.221896 | W33: =SMALL('RR-1C'!$AA$13:$AA$27,6) -> 4435.922916
